Cogmind - Beta 17.1 @@@ ROGUE MODE // 2026.08.23 @ 16:53:22 Player: Infomantis Result: Establishing Free Derelict Territories! Performance ------------- Evolutions (9) 4500 Regions Visited (34) 6800 Robots Destroyed (327) 1635 Value Destroyed (14590) 14590 Prototype IDs (63) 1260 Alien Tech Used (2) 400 Bonus (36733) 36733 TOTAL SCORE: 65918 Bonus ------- High Alert Combat Kills 494 Follower Combat Kills 2479 Network Hubs Disabled 200 Met Data Miner 300 Met Imprinter 300 Met Warlord at Base 500 MAIN.C Attacked Warlord 500 Warlord Defense Kills 932 Met R17 at Cetus 500 Met R17 at Research 2000 Met Warlord at Research 2000 Invited to Help at Command 2000 Destroyed MAIN.C Guards 500 Met MAIN.C 5000 Destroyed MAIN.C Shell 5000 Destroyed MAIN.C 10000 Met Warlord at Command 2000 Win 3000 Friendly Fire -972 Cogmind --------- Core Integrity 1200/1600 Matter 203/300 Energy 27/940 System Corruption 8% Temperature Warm (122) Movement Immobile (Siege) Ox1 Location Free Derelict Territories Parts ------- > --- POWER (2) -------- Light Quantum Reactor Improved Quantum Reactor > --- PROPULSION (7) --- Myomer Leg Biometal Leg Biometal Leg Biometal Leg Heavy Shield Leg > --- UTILITY (11) ----- Advanced Cooling System Experimental Coolant Injector Huge Storage Unit Advanced Energy Well Experimental Targeting Computer Advanced Target Analyzer Experimental Core Analyzer Advanced Particle Charger SHELL Armor (fused) > --- WEAPON (6) ------- BFG-9k Vortex Edition > --- INVENTORY (25) --- Quantum Reactor Advanced Heavy Siege Treads Biometal Leg Matter Compressor (250) Advanced Matter Compressor (400) Seismic Detector Centrium Medium Armor Plating Advanced Point Defense System High-powered Tractor Beam BFG-9k Vortex Edition (27) Helical Railgun Heavy Hardcell Cannon Heavy Hardcell Cannon Hellfire Missile Launcher Peak State ------------ > --- POWER ------------ Light Quantum Reactor Improved Quantum Reactor > --- PROPULSION ------- Myomer Leg Biometal Leg Biometal Leg Biometal Leg Improved Thunder Leg Heavy Shield Leg > --- UTILITY ---------- Advanced Cooling System Experimental Coolant Injector Huge Storage Unit Advanced Energy Well Experimental Targeting Computer Advanced Target Analyzer Experimental Core Analyzer Advanced Particle Charger SHELL Armor > --- WEAPON ----------- BFG-9k Vortex Edition > --- INVENTORY -------- Quantum Reactor Advanced Heavy Siege Treads Biometal Leg Matter Compressor Advanced Matter Compressor Seismic Detector Centrium Medium Armor Plating Advanced Point Defense System High-powered Tractor Beam BFG-9k Vortex Edition Helical Railgun Heavy Hardcell Cannon Heavy Hardcell Cannon Hellfire Missile Launcher [Rating: 258] Favorites ----------- Power Quantum Reactor Engine Makeshift Power Source Power Core Neutrino Core Reactor Quantum Reactor Propulsion Centrium Heavy Treads Treads Centrium Heavy Treads Leg Biometal Leg Wheel Wheel Hover Unit Backup Propulsion I Flight Unit Cesium-ion Thruster Utility Advanced Heat Sink Device Advanced Heat Sink Storage Huge Storage Unit Processor 0b10 Decoder Chip [Generic] Hackware System Mapper Protection Centrium Medium Armor Plating Weapon KE Penetrator Energy Gun Beamcaster Energy Cannon Phase Cannon Ballistic Gun KE Penetrator Ballistic Cannon Heavy Hardcell Cannon Launcher Improved Grenade Launcher Special Weapon RU-N14's Throwing Claymores Impact Weapon Heavy Flail Slashing Weapon Chainsword Piercing Weapon Makeshift Spear Special Melee Weapon Datajack Build | -11 -10 -10 -9 -9 -9 -8 -8 -8 -7 -7 -7 -7 -6 -6 -6 -6 -6 -5 -5 -5 -5 -5 -5 -4 -4 -4 -4 -3 -3 -3 -2 -2 -1 -1 ------- Run | Yrd Mat Min Mat Min Exi Min Mat Sto Fac Low Low Dat Pro Fac Low Low Zio Pro Fac Ext Cet Arc Hub Fac Upp Upp War Pro Res Tes Res Qua Acc Com Slots Evolved 18 | . . . 2 . . . 2 . 2 . . . . 2 . . . . 2 . . . . 2 . . . . 2 . 2 . 2 . Power 1 | . . . . . . . . . . . . . . . . . . . 1 . . . . . . . . . . . . . . . Propulsion 5 | . . . 1 . . . . . 1 . . . . 1 . . . . . . . . . . . . . . . . 1 . 1 . Utility 8 | . . . 1 . . . 1 . 1 . . . . 1 . . . . . . . . . 2 . . . . . . 1 . 1 . Weapon 4 | . . . . . . . 1 . . . . . . . . . . . 1 . . . . . . . . . 2 . . . . . Parts Attached 295 | 6 9 . 8 4 1 3 19 11 10 3 6 1 2 9 11 4 6 9 25 29 13 1 1 3 2 2 9 2 7 11 43 2 8 15 Power 37 | 1 2 . 1 . . 1 3 2 2 . 1 . . 1 1 1 . . 3 4 2 . . 1 1 . 1 . . 1 4 . 1 3 Engine 15 | 1 2 . 1 . . 1 3 1 2 . . . . . . 1 . . . 1 1 . . . . . . . . . 1 . . . Core 9 | . . . . . . . . 1 . . 1 . . 1 1 . . . 3 2 . . . . . . . . . . . . . . Reactor 13 | . . . . . . . . . . . . . . . . . . . . 1 1 . . 1 1 . 1 . . 1 3 . 1 3 Propulsion 79 | 2 2 . 1 1 . 1 4 2 3 1 1 . . 5 2 2 2 3 9 7 2 1 . . . . 2 . 1 3 15 2 2 3 Treads 22 | 2 . . . . . . 3 . . . . . . . . . . 1 1 6 2 1 . . . . 2 . 1 3 . . . . Leg 27 | . 2 . 1 1 . 1 . . . . . . . 1 . . 1 1 4 1 . . . . . . . . . . 7 2 2 3 Wheel 5 | . . . . . . . . . . . . . . . . 2 . . 3 . . . . . . . . . . . . . . . Hover 14 | . . . . . . . . 1 3 1 1 . . 4 2 . 1 . 1 . . . . . . . . . . . . . . . Flight 11 | . . . . . . . 1 1 . . . . . . . . . 1 . . . . . . . . . . . . 8 . . . Utility 98 | 1 3 . 4 1 1 1 8 2 3 1 1 1 1 3 5 . 1 3 8 12 4 . 1 2 1 1 4 1 3 5 10 . 1 5 Device 44 | . 2 . 1 1 . 1 3 1 . . . 1 1 2 2 . . 2 1 5 2 . 1 1 . 1 2 1 1 3 5 . . 4 Storage 13 | 1 1 . 1 . 1 . 2 1 . . . . . . . . . . 1 4 . . . . . . . . . 1 . . . . Processor 18 | . . . . . . . 2 . . 1 1 . . . 2 . 1 . 2 3 . . . . 1 . 1 . 1 . 2 . . 1 Hackware 6 | . . . . . . . . . 1 . . . . 1 . . . . 1 . . . . 1 . . . . 1 . . . 1 . Protection 17 | . . . 2 . . . 1 . 2 . . . . . 1 . . 1 3 . 2 . . . . . 1 . . 1 3 . . . Artifact . | . . . . . . . . . . . . . . . . . . . . . . . . . . . . . . . . . . . Weapon 81 | 2 2 . 2 2 . . 4 5 2 1 3 . 1 . 3 1 3 3 5 6 5 . . . . 1 2 1 3 2 14 . 4 4 Energy Gun 10 | 1 . . . 1 . . 1 . . . . . . . 1 . . . . 2 1 . . . . . 1 . . 1 . . . 1 Energy Cannon 7 | . . . . . . . . . . . . . . . . . . 1 . . . . . . . . . . 2 . . . 2 2 Ballistic Gun 36 | 1 . . . 1 . . . 3 . . 1 . . . . . . 1 4 4 4 . . . . 1 1 1 1 1 10 . 1 1 Ballistic Cannon 3 | . . . . . . . . . . . . . . . . . . . . . . . . . . . . . . . 2 . 1 . Launcher 4 | . . . . . . . 1 . . . . . . . 1 . . . . . . . . . . . . . . . 2 . . . Special Weapon 3 | . . . . . . . . . . . . . . . . . 1 1 1 . . . . . . . . . . . . . . . Impact Weapon 10 | . 2 . 2 . . . 1 1 2 . 2 . . . . . . . . . . . . . . . . . . . . . . . Slashing Weapon 6 | . . . . . . . 1 1 . . . . 1 . 1 1 1 . . . . . . . . . . . . . . . . . Piercing Weapon 1 | . . . . . . . . . . . . . . . . . 1 . . . . . . . . . . . . . . . . . Special Melee Weapon 1 | . . . . . . . . . . 1 . . . . . . . . . . . . . . . . . . . . . . . . Unidentified Prototypes 36 | . . . . 1 . . 2 1 . . 1 . . 1 . . 1 . 2 3 4 . . . . . 3 . 1 4 8 . 2 2 Corrupted Parts 9 | . . . . . . . . . . . . . . . . . . . . . . . . . . . 2 1 . . 6 . . . System Corruption 42 | . . . . . . . . . . . . . . . . . . . . . . . . . . . 15 1 . . 26 . . . Parts Lost 85 | . . . . . . 5 11 1 5 1 . . . 10 2 . . 8 14 . 1 . . . . 2 1 . . 2 20 . . 2 Power 8 | . . . . . . 2 1 . . . . . . 1 . . . 1 1 . . . . . . . . . . . 2 . . . Propulsion 30 | . . . . . . 2 5 1 2 1 . . . 6 1 . . 4 3 . . . . . . . . . . . 4 . . 1 Utility 25 | . . . . . . 1 4 . 2 . . . . 1 1 . . 3 5 . . . . . . 2 1 . . . 5 . . . Weapon 22 | . . . . . . . 1 . 1 . . . . 2 . . . . 5 . 1 . . . . . . . . 2 9 . . 1 Highest Loss Streak 18 | . . . . . . 4 6 1 3 1 . . . 9 2 . . 4 6 . 1 . . . . 1 1 . . 1 18 . . 1 To Critical Strikes 4 | . . . . . . . . . . . . . . . . . . . . . 1 . . . . . . . . 2 1 . . . Average Backups 13 | 1 7 10 14 15 15 14 13 7 9 8 9 10 10 9 3 3 3 4 6 13 23 24 24 24 24 24 23 19 18 16 11 19 17 15 Power . | . . . . . . . . . . . . 1 1 . . . . . . 1 1 2 2 1 1 1 1 1 1 1 . 1 1 1 Propulsion 1 | . 2 2 4 4 4 3 2 . 1 1 1 2 2 . . . . . . 1 2 2 2 2 2 2 2 3 2 1 1 4 2 2 Utility 6 | . 1 4 6 7 7 7 6 3 5 4 3 4 4 5 1 1 1 1 3 5 10 13 13 14 15 14 12 9 10 10 6 8 6 5 Weapon 4 | . 3 4 4 4 4 4 3 3 2 2 3 3 3 2 1 2 2 3 2 3 8 7 7 7 6 7 7 6 4 4 2 5 5 5 Tool/Special . | . . . . . . . . . . . . . . . . . . . . . . . . . . . . . . . . . . . Unused Backups 66 | . 6 . 4 2 . . 9 1 . . . . . 2 . . . . . 9 6 2 . . 2 . 11 . . 1 4 3 1 3 Power 4 | . . . . . . . . . . . . . . 1 . . . . . 2 1 . . . . . . . . . . . . . Propulsion 22 | . 2 . 2 . . . 3 . . . . . . . . . . . . 3 1 1 . . . . 3 . . . 2 3 1 1 Utility 19 | . 1 . . 2 . . 2 1 . . . . . 1 . . . . . 3 1 . . . . . 4 . . 1 2 . . 1 Weapon 20 | . 3 . 2 . . . 4 . . . . . . . . . . . . 1 2 1 . . 2 . 4 . . . . . . 1 Tool/Special 1 | . . . . . . . . . . . . . . . . . . . . . 1 . . . . . . . . . . . . . Average Slot Usage (%) 87 | . 91 100 97 99 100 81 89 71 84 83 77 100 100 91 61 78 90 98 76 94 93 88 88 89 90 89 89 89 88 92 69 91 90 90 Engine 3 | . 14 14 11 11 11 6 5 3 6 7 2 . . . . 5 6 5 . 2 3 . . . . . . . . . 2 4 3 . Core 1 | . . . . . . . . 3 . . 4 7 7 5 4 . . . 6 8 5 5 5 5 1 . . . . . . . . . Reactor 2 | . . . . . . . . . . . . . . . . . . . . . 1 5 5 5 8 10 9 10 9 9 3 4 3 6 Treads 7 | . 10 . . . . . 20 . . . . . . . . . . 4 3 14 21 16 16 15 15 15 15 15 13 16 3 . . . Leg 8 | . 17 28 32 33 33 25 3 . . . . . . . . . 1 11 6 12 . . . . . . . . . . 10 25 26 25 Hover 4 | . . . . . . . . 4 25 22 23 28 28 25 4 6 7 1 1 . . . . . . . . . . . . . . . Device 12 | . 6 14 13 22 22 16 15 10 2 6 6 7 7 7 14 12 12 16 6 6 11 11 11 18 15 14 15 19 15 12 8 8 7 10 Storage 5 | . 14 14 11 11 11 11 8 6 7 7 7 7 7 5 . . . . 2 5 5 5 5 5 5 5 5 5 4 4 2 4 3 4 Processor 14 | . . . . . . . 2 18 15 22 23 28 28 25 24 25 25 19 15 14 16 16 16 15 16 20 19 15 12 13 11 12 11 9 Hackware 1 | . . . . . . . . . 3 . . . . 4 . . . . 3 . . . . 1 3 . . . 2 4 4 4 6 3 Protection 3 | . . . 6 . . . 7 . 3 . . . . . 2 6 6 6 1 5 5 5 5 5 5 5 5 5 4 4 3 4 3 3 Ballistic Gun 9 | . 5 . . . . . . . . . 1 . . . . . . . 8 16 21 22 22 19 20 20 18 20 24 25 11 25 19 20 Impact Weapon 6 | . 17 28 22 21 22 22 23 8 13 7 7 14 14 11 4 6 4 . . . . . . . . . . . . . . . . . Slashing Weapon 1 | . . . . . . . 1 2 3 . . . 6 5 3 11 12 9 4 . . . . . . . . . . . . . . . Peak Build Rating 258 | 6 14 12 21 30 24 24 33 31 34 39 55 46 55 67 48 48 59 64 77 102 131 126 125 136 136 141 161 164 203 188 206 194 218 258 Average Rating 88 | 4 9 12 18 21 24 21 27 22 28 34 34 46 53 57 38 46 51 61 57 91 116 125 124 135 135 138 146 163 180 177 146 193 211 218 On Entrance 80 | . 6 12 12 21 24 24 22 16 22 28 29 51 46 54 18 47 48 59 46 77 102 126 125 125 135 135 141 159 164 183 175 193 194 214 Avg Prop Armor Cover (%) 7 | . . . . . . . 5 . . . . . . 6 . 4 5 17 9 2 . . . . . . . . . 4 . . . 1 Naked Turns . | . . . . . . . . . . . . . . . . . . . . . . . . . . . . . . . . . . . Heaviest Build 206 | 14 20 20 41 35 35 35 63 23 23 28 28 27 28 32 28 24 18 34 71 144 148 148 148 154 151 162 166 162 178 169 168 167 177 206 Greatest Support 197 | 40 40 26 39 46 46 46 69 21 29 21 30 30 30 39 12 20 24 40 81 159 190 190 188 188 188 188 188 187 187 187 168 168 196 197 Greatest Overweight (x) 6 | . 1 . 1 1 . 1 2 2 1 1 1 . . 1 3 1 . 3 6 1 . . . . . . . 1 . 1 3 . . 1 Average Overweight (x) . | . . . . . . . . . . . . . . . . . . 1 . . . . . . . . . . . . . . . . Largest Inventory Capacity 25 | 8 10 10 15 15 15 15 20 10 10 10 10 10 10 10 5 5 5 5 10 25 25 25 25 25 25 25 25 25 25 25 25 25 25 25 Average Capacity 15 | 7 8 10 14 15 15 15 15 8 10 10 10 10 10 9 5 5 5 5 7 14 25 25 25 25 25 25 25 25 25 25 18 25 25 25 Most Carried 25 | 3 10 10 15 15 15 15 16 10 10 10 10 10 10 10 5 5 5 5 10 25 25 25 25 25 25 25 25 25 25 25 25 25 25 25 Average Carried 15 | 1 7 10 14 14 15 14 13 7 9 8 9 10 10 9 4 5 4 4 6 13 24 24 24 24 24 24 24 25 24 24 16 24 24 24 Final Capacity 25 | 8 10 10 15 15 15 15 5 10 10 10 10 10 10 5 5 5 5 5 10 25 25 25 25 25 25 25 25 25 25 25 25 25 25 25 Final Carried 25 | 3 10 10 15 15 15 14 5 10 10 7 10 10 10 5 4 5 5 4 10 25 24 25 25 25 25 25 25 25 25 24 25 25 25 22 Class Distribution -------------------- 28% | Mutant 17% | Scavenger-Tank 15% | Scavenger-Executioner 12% | Scavenger-Gunner 11% | Derelict-Gladiator 4% | Scavenger-Gladiator 4% | Derelict-Mutant Dominant Class ---------------- Mutant | -10/Materials Mutant | -10/Mines Mutant | -9/Materials Mutant | -9/Mines Mutant | -9/Exiles Mutant | -8/Mines Mutant | -8/Materials Commander-Mutant | -8/Storage Gladiator | -7/Factory Mutant | -7/Lower Caves Mutant | -7/Lower Caves Scavenger-Gladiator | -7/Data Miner Scavenger-Gladiator | -6/Proximity Caves Scavenger-Gladiator | -6/Factory Derelict-Gladiator | -6/Lower Caves Derelict-Gladiator | -6/Lower Caves Derelict-Gladiator | -6/Zion Derelict-Mutant | -5/Proximity Caves Scavenger-Gunner | -5/Factory Scavenger-Gunner | -5/Extension Scavenger-Tank | -5/Cetus Scavenger-Tank | -5/Archives Scavenger-Tank | -5/Hub_04(d) Scavenger-Tank | -4/Factory Scavenger-Tank | -4/Upper Caves Scavenger-Gunner | -4/Upper Caves Scavenger-Gunner | -4/Warlord Scavenger-Tank | -3/Proximity Caves Scavenger-Executioner | -3/Research Scavenger-Executioner | -3/Testing Scavenger-Executioner | -2/Research Scavenger-Executioner | -2/Quarantine Scavenger-Executioner | -1/Access Scavenger-Executioner | -1/Command Resources | -11 -10 -10 -9 -9 -9 -8 -8 -8 -7 -7 -7 -7 -6 -6 -6 -6 -6 -5 -5 -5 -5 -5 -5 -4 -4 -4 -4 -3 -3 -3 -2 -2 -1 -1 ----------- Run | Yrd Mat Min Mat Min Exi Min Mat Sto Fac Low Low Dat Pro Fac Low Low Zio Pro Fac Ext Cet Arc Hub Fac Upp Upp War Pro Res Tes Res Qua Acc Com Matter Collected 11271 | 236 213 . 90 105 . 30 246 162 65 134 267 . 121 139 140 50 70 180 335 957 353 250 471 . 261 596 372 145 385 805 1460 188 667 1778 Remotely 924 | . . . . . . . . . . . . . . . . . . . . . . . 22 . . 177 . . . 146 151 . 428 . Salvage Created 16076 | . 878 22 268 327 . 258 1238 335 232 59 337 . . 1008 251 34 . 460 517 1702 186 438 880 120 90 764 472 247 289 576 639 100 930 2419 Parts 663 | . 37 . 7 3 . 2 29 13 6 7 17 . . 48 5 2 . 14 21 71 5 25 45 6 4 36 17 9 18 33 41 4 43 95 Haulers Intercepted 14 | . 2 . . . . . 3 3 1 . . . . 3 . . . . . 1 . . . . . . . . . . . . 1 . Recyclers Shooed 3 | . 1 . . . . . . . . . . . . . . . . 1 . . . . . . . . . . . . . . . 1 Parts Field Recycled . | . . . . . . . . . . . . . . . . . . . . . . . . . . . . . . . . . . . Retrieved Matter . | . . . . . . . . . . . . . . . . . . . . . . . . . . . . . . . . . . . Parts Self-Destructed 89 | . . . . . . . . . . 6 10 . . . 7 1 . 11 . . . . . . 3 37 . 14 . . . . . . Prevented 6 | . . . . . . . . . . 1 . . . . 1 . . . . . . . . . 1 . . 3 . . . . . . Parts Restored . | . . . . . . . . . . . . . . . . . . . . . . . . . . . . . . . . . . . Kills | -11 -10 -10 -9 -9 -9 -8 -8 -8 -7 -7 -7 -7 -6 -6 -6 -6 -6 -5 -5 -5 -5 -5 -5 -4 -4 -4 -4 -3 -3 -3 -2 -2 -1 -1 ------- Run | Yrd Mat Min Mat Min Exi Min Mat Sto Fac Low Low Dat Pro Fac Low Low Zio Pro Fac Ext Cet Arc Hub Fac Upp Upp War Pro Res Tes Res Qua Acc Com Combat Hostiles Destroyed 238 | . 15 2 8 3 . 4 22 3 3 4 4 . . 10 2 . . 12 6 25 2 3 11 2 1 14 7 4 3 9 15 1 12 31 Melee 35 | . 4 . 2 1 . 3 8 3 3 . . . . 5 1 . . 3 2 . . . . . . . . . . . . . . . Guns 142 | . 8 . . . . . . . . . 1 . . . 1 . . . 1 23 2 3 11 2 1 14 7 4 3 9 12 1 10 29 Cannons 9 | . . . . . . . . . . . . . . . . . . 5 . . . . . . . . . . . . 1 . 2 1 AOE 23 | . . . . . . . 3 . . 3 3 . . 3 . . . 4 3 2 . . . . . . . . . . 2 . . . Classes Destroyed 25 | . 9 . 1 1 . . 3 1 1 . 3 . . . . . . 1 . 1 . . . . . . 2 1 . . 1 . . . Worker 12 | . 2 . 1 . . . 2 1 2 . . . . 2 . . . . . . . . 2 . . . . . . . . . . . Builder 14 | . 3 . 1 1 . . 2 . . . . . . 5 . . . . 1 . . . 1 . . . . . . . . . . . Tunneler 4 | . 1 . . 2 . 1 . . . . . . . . . . . . . . . . . . . . . . . . . . . . Hauler 14 | . 2 . . . . . 3 3 1 . . . . 3 . . . . . 1 . . . . . . . . . . . . 1 . Recycler 13 | . 3 . . 2 . 2 2 . . . . . . 1 . . . . 2 1 . . . . . . . . . . . . . . Minesweeper 4 | . . . . . . . . . . . 1 . . . 2 1 . . . . . . . . . . . . . . . . . . Mechanic 2 | . . . . . . . 1 . . . . . . . . . . . . . . . . . . . . . 1 . . . . . Operator 11 | . 1 . . . . . . . 2 . . . . 1 . . . . 1 . . 5 1 . . . . . . . . . . . Drone 1 | . . . . . . . . . . . . . . . . . . . . . . . . . . . . 1 . . . . . . Watcher 10 | . 1 . . . . . . . . . . . . 1 . . . . . 1 2 . 3 . . . . . . . . . 1 1 Swarmer 61 | . 3 2 3 3 . 1 4 . . 4 3 . . 3 . . . 4 . 6 . . . . . 6 . . . 3 10 . 2 4 Saboteur 1 | . . . . . . . . . . . . . . . . . . . . . . . . . . . 1 . . . . . . . Grunt 84 | . 12 . 4 . . 3 12 . 2 . . . . 3 2 . . 2 2 5 . . 6 . . 6 5 2 . . . . 5 13 Brawler 6 | . . . . . . . 1 . . . . . . . . . . 1 . . . . 1 . . . . . . . 1 . . 2 Duelist 5 | . . . . . . . 1 . . . . . . . . . . 1 1 . . . 1 . . . . 1 . . . . . . Protector 1 | . . . . . . . . . . . . . . . . . . 1 . . . . . . . . . . . . . . . . Researcher 2 | . . . . . . . . . . . 1 . . . . . . . . . . . . . . . . . . 1 . . . . Sentry 29 | . . . 1 . . . 4 2 . . . . . 3 . . . 1 1 8 . 3 1 . 1 2 . . 1 . . . . 1 Hunter 22 | . . . . . . . . 1 . . . . . 1 . . . 2 2 3 . . 1 . . . . . 2 4 1 1 2 2 Programmer 16 | . . . . . . . . . 1 . 1 . . . . . . . . . . . 1 2 . . . . . 2 . . 3 6 Behemoth 2 | . . . . . . . . . . . . . . . . . . . . 1 . . . . . . . . . . 1 . . . Cetus Guard 2 | . . . . . . . . . . . . . . . . . . . . . 2 . . . . . . . . . . . . . M Guard 2 | . . . . . . . . . . . . . . . . . . . . . . . . . . . . . . . . . . 2 Enhanced Grunt 1 | . . . . . . . . . . . . . . . . . . . . . . . . . . . . . . . . . . 1 Striker 1 | . . . . . . . . . . . . . . . . . . . . . . . . . . . 1 . . . . . . . Executioner 2 | . . . . . . . . . . . . . . . . . . . . . . . . . . . . . . . 2 . . . Zionite 1 | . . . . 1 . . . . . . . . . . . . . . . . . . . . . . . . . . . . . . Decomposer 6 | . . . . . . . . . . . 1 . . . 3 1 . . . . . . . . 1 . . . . . . . . . Tinkerer 1 | . . . . . . . . . . . 1 . . . . . . . . . . . . . . . . . . . . . . . Thug 2 | . . . . 1 . . . . . . . . . . . . . . . 1 . . . . . . . . . . . . . . Guerrilla 1 | . . . . . . . . . . . . . . . . . . . . 1 . . . . . . . . . . . . . . Best Kill Streak 10 | . 8 2 4 3 . 3 9 4 3 4 3 . . 10 1 1 . 3 4 6 3 4 7 2 1 7 3 2 3 3 9 1 8 6 Combat Bots Only 9 | . 3 2 3 3 . 3 6 1 1 4 3 . . 4 1 . . 3 3 6 2 3 6 2 1 7 3 2 2 3 9 1 6 6 Max Kills in Single Turn 7 | . 7 1 1 1 . 1 3 1 1 3 3 . . 5 1 1 . 3 2 3 2 1 3 1 1 2 1 2 2 3 2 1 2 2 Gunslinging 1 | . . . . . . . . . . . . . . . . . . . . 1 . . . . . 1 . 1 . 1 1 . 1 1 Exploded 3 | . . . . . . . 2 . . 3 3 . . 3 . . . 2 2 2 . . . . . . . . . . 1 . . . Melee 1 | . 1 . 1 1 . 1 1 1 1 . . . . 1 1 . . 1 1 . . . . . . . . . . . . . . . Uniques/NPCs Destroyed 1 | . . . . . . . . . . . . . . . . . . . . . . . . . . . . . . . . . . 1 MAIN.C (-1/Command) Combat | -11 -10 -10 -9 -9 -9 -8 -8 -8 -7 -7 -7 -7 -6 -6 -6 -6 -6 -5 -5 -5 -5 -5 -5 -4 -4 -4 -4 -3 -3 -3 -2 -2 -1 -1 -------- Run | Yrd Mat Min Mat Min Exi Min Mat Sto Fac Low Low Dat Pro Fac Low Low Zio Pro Fac Ext Cet Arc Hub Fac Upp Upp War Pro Res Tes Res Qua Acc Com Hostile Shots Fired 1738 | . 63 18 32 17 . 75 146 16 38 8 11 . 9 85 14 . . 73 92 125 18 6 31 8 16 103 60 18 12 64 310 18 87 165 Missed 504 | . 21 2 10 3 . 23 45 6 11 2 1 . 3 30 6 . . 21 10 35 4 6 7 1 4 17 19 6 4 22 77 2 47 59 Intercepted 5 | . . . . . . . . . . . . . . . . . . . . . . . . . . . . . . . . . . 5 Hits 1234 | . 42 16 22 14 . 52 101 10 27 6 10 . 6 55 8 . . 52 82 90 14 . 24 7 12 86 41 12 8 42 233 16 40 106 Melee 10 | . . . . . . . 3 . . . . . . . . . . 3 4 . . . . . . . . . . . . . . . Projectile 1224 | . 42 16 22 14 . 52 98 10 27 6 10 . 6 55 8 . . 49 78 90 14 . 24 7 12 86 41 12 8 42 233 16 40 106 AOE 3 | . . . . . . . . . . . . . . . . . . . . . . . . . . . . . . . . . . 3 Critical Strikes 44 | . . . 1 . . 4 2 1 . . . . . . . . . 2 1 3 3 1 3 . . 3 2 . . 5 8 1 2 2 Part Disruptions 8 | . . . . . . . . . . . . . . 1 . . . . . . . . . . . . . . . 1 . . . 6 Damage Taken 23816 | . 565 124 393 106 . 520 1487 159 374 121 156 . 50 766 129 . . 994 1431 1753 429 14 573 169 190 1159 585 151 69 740 5779 314 910 3606 Core 2915 | . 99 53 48 23 . 112 199 42 97 32 49 . 6 186 86 . . 159 217 48 24 . 18 . 18 86 56 . 23 49 785 . 26 374 Absorbed by Shields 1948 | . . . . . . . 77 . . . . . . . . . . 66 . 165 . . . 60 68 417 501 152 71 94 277 . . . Reduced by Siege Mode 167 | . . . . . . . . . . . . . . . . . . . . . . . 10 . . 140 . . . . 17 . . . Regen/Repaired (Parts) 3883 | . . . . . . . . . . . . . . . . . . . . . . . . 141 . . 447 . . . 1300 196 541 1258 Core Remaining (%) 67 | 100 . 39 . . . 54 . 56 . . . . 73 . . . . 49 . . . . 69 . . . . 86 . 94 . 45 . 75 Volleys Fired 548 | . 33 . . 25 . . 4 . . 3 25 . 3 3 20 . . 78 19 56 12 15 29 8 3 22 20 6 12 19 36 12 27 58 Largest 6 | . 2 . . 1 . . 1 . . 1 1 . 1 1 1 . . 1 4 4 4 4 4 4 4 4 3 4 6 6 6 6 6 6 Hottest 300 | . 70 . . 20 . . 45 . . 36 36 . 33 36 70 . . 85 113 222 134 134 134 134 134 134 105 143 216 216 300 201 214 300 Shots Fired 1541 | . 66 . . 25 . . 4 . . 3 25 . 3 3 20 . . 78 34 212 47 60 107 26 13 79 57 24 41 102 94 36 105 277 Gun 1393 | . 66 . . 25 . . 2 . . . 24 . 3 . 20 . . . 27 211 47 60 107 26 13 79 57 24 41 102 73 36 88 262 Cannon 127 | . . . . . . . . . . . . . . . . . . 74 5 . . . . . . . . . . . 16 . 17 15 Launcher 12 | . . . . . . . 2 . . 3 1 . . 3 . . . . . . . . . . . . . . . . 3 . . . Special 9 | . . . . . . . . . . . . . . . . . . 4 2 1 . . . . . . . . . . 2 . . . Kinetic 1294 | . 33 . . 25 . . . . . . 24 . 3 . . . . . 27 153 47 60 107 26 13 79 57 24 41 102 83 36 98 256 Thermal 178 | . 33 . . . . . . . . . . . . . . . . 74 5 58 . . . . . . . . . . . . 7 1 Explosive 18 | . . . . . . . 2 . . 3 1 . . 3 . . . 4 2 1 . . . . . . . . . . 2 . . . Electromagnetic 37 | . . . . . . . 2 . . . . . . . 20 . . . . . . . . . . . . . . . 3 . . 12 Entropic 14 | . . . . . . . . . . . . . . . . . . . . . . . . . . . . . . . 6 . . 8 Robot Hit Streak 38 | . 22 . . 10 . . 1 . . . 4 . 4 . 8 . . 7 10 21 11 14 18 8 18 38 20 19 11 11 18 8 12 13 Robot Miss Streak 4 | . 2 . . 2 . . 2 . . . 2 . . . 4 . . 1 3 3 3 1 4 2 1 3 3 3 2 3 3 2 4 3 Penetration Max 2 | . . . . . . . . . . . . . . . . . . . . 1 1 1 1 . . 1 1 1 . 1 1 . 1 2 Secondary Targets 38 | . . . . . . . . . . . . . . . . . . . . 5 . . 2 . . 8 4 1 . 3 5 . 2 8 Max Gunslinging Chain 1 | . . . . . . . . . . . . . . . . . . . . 1 . . 1 . . 1 1 1 . 1 1 . 1 1 Shots Hit Robots 1254 | . 73 6 23 27 . 13 72 13 19 2 19 1 1 41 24 3 . 35 45 153 31 40 59 15 11 61 46 17 26 58 75 19 54 172 Core Hits 562 | . 27 . 2 8 . 1 22 5 5 2 13 . . 22 16 1 . 19 17 70 10 17 31 2 4 29 16 8 14 27 33 8 33 100 Critical Kills 33 | . 1 . . . . . 1 2 1 . 2 . . . . . . . . 1 1 2 4 1 . 3 2 1 . 1 2 . 2 6 Critical Parts Destroyed 77 | . 4 4 4 1 . 4 12 2 2 . 4 . . 5 2 . . . . 5 4 2 1 2 . 3 5 1 . 1 4 1 . 4 Critical Strikes 136 | . 7 4 4 1 . 4 14 4 5 . 6 . . 9 2 . . 2 3 10 5 5 5 3 . 6 8 2 1 2 9 1 3 11 Burn 6 | . 2 . . . . . . . . . . . . . . . . . . 4 . . . . . . . . . . . . . . Destroy 70 | . . . . . . . . . . . 5 . . . . . . . . 6 5 5 5 3 . 6 8 2 1 2 9 1 2 10 Blast 1 | . . . . . . . . . . . . . . . . . . . . . . . . . . . . . . . . . 1 . Corrupt 1 | . . . . . . . . . . . . . . . . . . . . . . . . . . . . . . . . . . 1 Smash 46 | . 5 4 4 1 . 4 13 4 3 . 1 . . 5 2 . . . . . . . . . . . . . . . . . . . Sever 10 | . . . . . . . 1 . 2 . . . . 4 . . . 1 2 . . . . . . . . . . . . . . . Impale 2 | . . . . . . . . . . . . . . . . . . 1 1 . . . . . . . . . . . . . . . Melee Attacks 432 | . 38 10 30 14 . 30 103 22 40 8 4 1 3 68 6 4 . 24 27 . . . . . . . . . . . . . . . Impact 306 | . 38 10 30 14 . 30 92 19 31 8 4 . . 26 4 . . . . . . . . . . . . . . . . . . . Slashing 112 | . . . . . . . 11 3 9 . . . 3 42 2 4 . 18 20 . . . . . . . . . . . . . . . Piercing 13 | . . . . . . . . . . . . . . . . . . 6 7 . . . . . . . . . . . . . . . Sneak Attacks 55 | . 5 . 2 5 . 4 12 3 4 . 2 1 . 5 5 3 . . 4 . . . . . . . . . . . . . . . Combat Hostiles . | . . . . . . . . . . . . . . . . . . . . . . . . . . . . . . . . . . . Follow-up Attacks 66 | . 4 2 3 1 . 3 21 2 5 . . . . 11 . . . 5 9 . . . . . . . . . . . . . . . Damage Inflicted 52846 | . 2253 153 997 1044 . 849 4206 558 953 349 574 . 6 2870 842 233 . 1864 1887 4136 901 1220 2549 569 264 1683 1861 533 730 1506 5473 394 1949 9440 Guns 25126 | . 567 . . 155 . . 33 . . . 98 . 6 . 214 . . . 336 3780 901 1220 1963 569 264 1683 1861 533 730 1506 1776 362 1578 4991 Cannons 8304 | . . . . . . . . . . . . . . . . . . 564 91 . . . . . . . . . . . 2829 . 371 4449 Explosions 5623 | . 726 . . . . . 507 . . 256 178 . . 864 154 . . 738 521 308 . . 586 . . . . . . . 785 . . . Melee 13469 | . 960 153 997 889 . 849 3666 553 953 92 298 . . 2006 474 233 . 458 888 . . . . . . . . . . . . . . . Ramming 65 | . . . . . . . . 5 . 1 . . . . . . . . . 12 . . . . . . . . . . 15 32 . . Kinetic 24060 | . 282 . . 155 . . . . . . 98 . 6 . . . . . 336 2762 901 1220 1963 569 264 1683 1861 533 730 1506 1959 362 1949 4921 Thermal 3122 | . 1011 . . . . . . . . . . . . . 154 . . 677 91 1018 . . . . . . . . . . 171 . . . Explosive 3538 | . . . . . . . 507 . . 256 178 . . 864 . . . 625 521 308 . . . . . . . . . . 279 . . . Electromagnetic 1318 | . . . . . . . 33 . . . . . . . 214 . . . . . . . 586 . . . . . . . 335 . . 150 Impact 10503 | . 960 153 997 889 . 849 3494 496 855 92 298 . . 1100 320 . . . . . . . . . . . . . . . . . . . Slashing 3028 | . . . . . . . 172 57 98 . . . . 906 154 233 . 480 824 36 . . . . . . . . . . 68 . . . Piercing 197 | . . . . . . . . . . . . . . . . . . 82 115 . . . . . . . . . . . . . . . Entropic 7015 | . . . . . . . . . . . . . . . . . . . . . . . . . . . . . . . 2646 . . 4369 Highest Corruption 27 | . . . . . . . . . . . 1 1 1 . . . . . . . . . 2 1 1 1 17 18 . 2 27 27 1 8 Average Corruption 7 | . . . . . . . . . . . 1 1 1 . . . . . . . . . 1 1 1 1 3 17 . 1 21 27 1 3 Corruption Purged 1 | . . . . . . . . . . . . . 1 . . . . . . . . . . . . . . . . . . . . . Corruption Blocked 22 | . . . . . . . . . . . . . . 11 . . . . . 11 . . . . . . . . . . . . . . Effects 134 | . . . . . . . . . . . 1 . 2 . . . . . . . . . 4 2 11 7 5 24 . 1 43 15 2 17 Message Errors 32 | . . . . . . . . . . . 1 . 1 . . . . . . . . . 2 . 3 3 2 3 . 1 13 2 . 1 Matter Fused 38 | . . . . . . . . . . . . . . . . . . . . . . . 2 . 4 2 1 5 . . 12 2 1 9 Heat Flow Errors 16 | . . . . . . . . . . . . . 1 . . . . . . . . . . . . . . 6 . . 5 3 . 1 Energy Discharges 13 | . . . . . . . . . . . . . . . . . . . . . . . . 1 2 1 1 4 . . 2 1 1 . Parts Rejected 2 | . . . . . . . . . . . . . . . . . . . . . . . . . . . . . . . . 1 . 1 Parts Fused 2 | . . . . . . . . . . . . . . . . . . . . . . . . . . . . . . . 1 1 . . Data Loss (minor) 13 | . . . . . . . . . . . . . . . . . . . . . . . . 1 1 1 . 3 . . 6 1 . . Data Loss (major) 3 | . . . . . . . . . . . . . . . . . . . . . . . . . . . . 1 . . 2 . . . Misfires 7 | . . . . . . . . . . . . . . . . . . . . . . . . . 1 . . 1 . . . 3 . 2 Alerts 2 | . . . . . . . . . . . . . . . . . . . . . . . . . . . . . . . 1 . . 1 Weapon Failures 6 | . . . . . . . . . . . . . . . . . . . . . . . . . . . 1 1 . . 1 1 . 2 Overload Shots . | . . . . . . . . . . . . . . . . . . . . . . . . . . . . . . . . . . . Overflow Damage 6036 | . 430 105 368 542 . 520 1255 154 413 63 280 . . 621 312 110 . 126 179 . . . 136 . . . . . . . 51 7 38 326 Projectiles 462 | . . . . . . . . . . . 28 . . . . . . 3 16 . . . . . . . . . . . 51 . 38 326 Explosions 687 | . 262 . . . . . 14 . . 45 . . . 141 7 . . 64 18 . . . 136 . . . . . . . . . . . Melee 4887 | . 168 105 368 542 . 520 1241 154 413 18 252 . . 480 305 110 . 59 145 . . . . . . . . . . . . 7 . . Knockbacks 36 | . 4 . 3 1 . . 15 . 3 2 1 . . 6 . . . . . . . . . . . . . . . . . . 1 . Impact 34 | . 4 . 3 1 . . 14 . 3 2 1 . . 6 . . . . . . . . . . . . . . . . . . . . Kinetic 1 | . . . . . . . . . . . . . . . . . . . . . . . . . . . . . . . . . 1 . Secondary 1 | . . . . . . . 1 . . . . . . . . . . . . . . . . . . . . . . . . . . . Self-Inflicted Damage 353 | . 47 . . . . . 66 2 . 32 . . . 75 . . . . . . . . 70 . . . . . . . 61 . . . Shots 10 | . 1 . . . . . 2 . . 1 . . . 2 . . . . . . . . 1 . . . . . . . 3 . . . Rammed 3 | . . . . . . . . 1 . 1 . . . . . . . . . . . . . . . . . . . . 1 . . . Targets Rammed 5 | . . . . . . . . 1 . 1 . . . . . . . . . 1 . . . . . . . . . . 1 1 . . Kicked 2 | . . . . . . . . . . . . . . . . . . . . 1 . . . . . . . . . . . 1 . . Crushed . | . . . . . . . . . . . . . . . . . . . . . . . . . . . . . . . . . . . Highest Temperature 578 | . 177 . 10 . . . 4 5 . . . . 100 . 64 . . . 148 419 30 42 121 24 18 51 30 229 30 168 232 210 30 578 Average Temperature 67 | . 56 . 10 . . . 2 5 . . . . 50 . 25 . . . 62 120 14 18 32 10 8 18 15 98 16 27 83 89 18 92 Received Heat Transfer 3660 | . 264 . 132 . . 135 630 63 129 . 18 . 18 63 27 . . 87 153 284 . . 180 . 36 130 70 20 . . 906 . 27 288 Effects 7 | . . . . . . . . . . . . . . . . . . . . 4 . . . . . . . . . . . . . 3 Shutdowns 2 | . . . . . . . . . . . . . . . . . . . . 1 . . . . . . . . . . . . . 1 Energy Bleed 3 | . . . . . . . . . . . . . . . . . . . . 2 . . . . . . . . . . . . . 1 Interference 1 | . . . . . . . . . . . . . . . . . . . . 1 . . . . . . . . . . . . . . Damage (core) 1 | . . . . . . . . . . . . . . . . . . . . . . . . . . . . . . . . . . 1 Siege Activations 5 | . . . . . . . . . . . . . . . . . . . . . 1 . 1 . . 2 . . . . 1 . . . Total Turns 101 | . . . . . . . . . . . . . . . . . . . . . 8 . 12 . . 72 . . . . 9 . . . Longest Duration 45 | . . . . . . . . . . . . . . . . . . . . . 8 . 12 . . 45 . . . . 9 . . . Martial Activations . | . . . . . . . . . . . . . . . . . . . . . . . . . . . . . . . . . . . Shielding Activations 1 | . . . . . . . . . . . . . . . . . . . . . . . . . . . . . . . . . . 1 Total Turns 3 | . . . . . . . . . . . . . . . . . . . . . . . . . . . . . . . . . . 3 Longest Duration 3 | . . . . . . . . . . . . . . . . . . . . . . . . . . . . . . . . . . 3 Robots Disrupted . | . . . . . . . . . . . . . . . . . . . . . . . . . . . . . . . . . . . Combat Hostiles . | . . . . . . . . . . . . . . . . . . . . . . . . . . . . . . . . . . . Robots Corrupted 49 | . 6 2 6 4 . 2 14 2 2 1 3 . . 5 . . . . . . . . 1 . . . . . . . . . . 1 Combat Hostiles 29 | . 3 2 6 2 . 1 11 . . 1 . . . 2 . . . . . . . . . . . . . . . . . . . 1 Parts Fried 87 | . 5 1 16 10 . 7 20 5 5 . 5 . . 7 . . . . . 2 . . 2 . . . . . . . 1 . . 1 Impact Corruptions 155 | . 12 6 10 17 . 13 41 5 11 2 12 . . 13 11 . . . . . . . . . . . . . . . 1 1 . . Robots Melted . | . . . . . . . . . . . . . . . . . . . . . . . . . . . . . . . . . . . Combat Hostiles . | . . . . . . . . . . . . . . . . . . . . . . . . . . . . . . . . . . . Parts Melted 7 | . 2 . . . . . . 1 . . . . . . . . . . . 4 . . . . . . . . . . . . . . Heat Transferred 4477 | . 1499 . . . . . . . . . . . . . 150 . . 569 111 1998 . . . . . . . . . . 150 . . . Parts Sabotaged . | . . . . . . . . . . . . . . . . . . . . . . . . . . . . . . . . . . . Parts Stolen . | . . . . . . . . . . . . . . . . . . . . . . . . . . . . . . . . . . . Parts Stripped . | . . . . . . . . . . . . . . . . . . . . . . . . . . . . . . . . . . . Power Chain Reactions 3 | . . . . . . . . . . . . . . . 2 . . . . . . . . . . . . . . . 1 . . . Alert | -11 -10 -10 -9 -9 -9 -8 -8 -8 -7 -7 -7 -7 -6 -6 -6 -6 -6 -5 -5 -5 -5 -5 -5 -4 -4 -4 -4 -3 -3 -3 -2 -2 -1 -1 ------- Run | Yrd Mat Min Mat Min Exi Min Mat Sto Fac Low Low Dat Pro Fac Low Low Zio Pro Fac Ext Cet Arc Hub Fac Upp Upp War Pro Res Tes Res Qua Acc Com Maximum Alert Level 2 | . 1 . . . . . 1 2 1 . . . . 1 . . . . . 2 2 1 2 1 . . . . . . 2 1 1 2 Low Security (%) 74 | 100 83 100 100 100 . 100 94 25 . . . . . 91 . . . . 100 79 . 43 77 78 . . . . 100 100 21 98 87 44 Level 1 15 | . 16 . . . . . 5 22 100 . . . . 8 . . . . . 18 68 56 3 21 . . . . . . 35 1 12 9 Level 2 10 | . . . . . . . . 52 . . . . . . . . . . . 2 31 . 19 . . . . . . . 43 . . 46 Level 3 . | . . . . . . . . . . . . . . . . . . . . . . . . . . . . . . . . . . . Level 4 . | . . . . . . . . . . . . . . . . . . . . . . . . . . . . . . . . . . . Level 5 . | . . . . . . . . . . . . . . . . . . . . . . . . . . . . . . . . . . . High Security . | . . . . . . . . . . . . . . . . . . . . . . . . . . . . . . . . . . . Max Security . | . . . . . . . . . . . . . . . . . . . . . . . . . . . . . . . . . . . Peak Influence 649 | . 227 123 120 63 . 60 339 648 306 . . . . 272 . . . . 86 649 430 285 619 295 . . . . 121 172 523 203 264 626 Initial 358 | . . 73 31 13 . . . 140 280 . . . . . . . . . . 18 358 140 40 295 . . . . . . 82 161 88 163 Average 143 | . 135 89 57 6 . 16 120 393 255 . . . . 85 . . . . 15 95 383 210 193 77 . . . . 34 42 343 163 91 335 Influence Increases 11504 | . 538 80 375 116 . 115 861 708 273 90 165 . 15 625 125 80 . 352 187 1211 332 235 934 135 20 280 429 227 181 472 879 137 422 905 Destroy 0b10 Robot/C 5760 | . 300 40 220 80 . 80 440 240 60 80 80 . . 200 40 . . 260 120 700 160 80 260 40 20 280 300 140 60 260 300 20 240 660 Destroy 0b10 Robot/NC 455 | . 65 . 15 25 . 15 50 25 25 . 5 . . 65 10 5 . 10 20 15 10 25 35 . . . . 10 10 . . . 10 5 Destroy Leader 986 | . 56 10 62 10 . 20 86 106 22 10 20 . . 68 . . . 20 20 82 . . 86 10 . . . 20 22 40 60 . 44 112 Allied During Kill 1207 | . . . 37 1 . . . 234 1 . . . . . . . . 62 . 346 138 52 32 10 . . 129 57 30 28 . . . 50 Successful Hack 284 | . . . 10 . . . 12 28 13 . . . . 18 . . . . . 6 . . 5 48 . . . . 18 10 . 78 38 . Disable Machine 615 | . 90 . 15 . . . . 30 15 . . . . 90 . . . . 15 15 . 30 135 15 . . . . 15 45 15 30 45 15 Anti-Garrison Action 150 | . . . . . . . . . . . . . . . . . . . . . . . . . . . . . . . 150 . . . Destroy Structure 757 | . 12 . 1 . . . 18 . 2 . . . . 34 . . . . 12 32 24 48 306 12 . . . . 26 44 129 9 30 18 Partial Spotted 90 | . . . . . . . 15 30 . . . . . 15 . . . . . . . . . . . . . . . 30 . . . . Lose Combat Pursuer 1200 | . 15 30 15 . . . 240 15 135 . 60 . 15 135 75 75 . . . 15 . . 75 . . . . . . 15 225 . 15 45 Influence Decreases 10922 | . 350 185 423 151 . 115 528 423 648 333 165 . 15 395 355 80 . 352 149 608 623 468 448 689 69 280 72 584 181 325 739 276 314 579 Entered New Map 2514 | . . 115 52 22 . . . 193 338 90 . . . . 86 . . . . 20 283 210 77 308 19 . . 357 . . 65 126 60 93 Time Decay 6840 | . 350 70 331 109 . 105 428 160 180 233 165 . 15 295 249 80 . 262 114 488 190 238 271 231 50 260 42 227 181 288 474 150 158 446 Lost Part 655 | . . . . . . 10 100 10 50 10 . . . 100 20 . . 50 35 . 10 . . . . 20 10 . . 10 200 . . 20 Lost Ally 667 | . . . 40 20 . . . 60 80 . . . . . . . . 40 . 100 140 20 100 . . . 20 . . 27 . . . 20 Purge Threat 246 | . . . . . . . . . . . . . . . . . . . . . . . . 150 . . . . . . . . 96 . Squads Dispatched 44 | . 1 . . . . . 2 3 4 . . . . 4 . . . . 2 1 . . 7 1 . . . . 1 5 1 4 4 4 Investigation 6 | . . . . . . . 1 1 1 . . . . 1 . . . . . . . . 1 . . . . . . . 1 . . . Extermination 10 | . . . . . . . . . 1 . . . . 1 . . . . 1 . . . 1 1 . . . . . 2 . . 1 2 Reinforcement 19 | . 1 . . . . . 1 . 2 . . . . 2 . . . . 1 1 . . 2 . . . . . 1 3 . 2 1 2 Assault . | . . . . . . . . . . . . . . . . . . . . . . . . . . . . . . . . . . . Garrison 9 | . . . . . . . . 2 . . . . . . . . . . . . . . 3 . . . . . . . . 2 2 . Intercept . | . . . . . . . . . . . . . . . . . . . . . . . . . . . . . . . . . . . Searches Triggered . | . . . . . . . . . . . . . . . . . . . . . . . . . . . . . . . . . . . Construction Impeded 2 | . . . . . . . 1 . . . . . . 1 . . . . . . . . . . . . . . . . . . . . Haulers Reinforced 1 | . . . . . . . . . . . . . . . . . . . . . . . . . . . . . . . . . 1 . Active Scanning Responses . | . . . . . . . . . . . . . . . . . . . . . . . . . . . . . . . . . . . Cargo Convoy Interrupts . | . . . . . . . . . . . . . . . . . . . . . . . . . . . . . . . . . . . Stealth | -11 -10 -10 -9 -9 -9 -8 -8 -8 -7 -7 -7 -7 -6 -6 -6 -6 -6 -5 -5 -5 -5 -5 -5 -4 -4 -4 -4 -3 -3 -3 -2 -2 -1 -1 --------- Run | Yrd Mat Min Mat Min Exi Min Mat Sto Fac Low Low Dat Pro Fac Low Low Zio Pro Fac Ext Cet Arc Hub Fac Upp Upp War Pro Res Tes Res Qua Acc Com Distress Signals 43 | . 5 . 1 . . . 10 4 1 . . . . . . . . 1 . 1 . . 3 . . . . . 3 2 6 . 2 4 Communications Jammed . | . . . . . . . . . . . . . . . . . . . . . . . . . . . . . . . . . . . Distress Signals . | . . . . . . . . . . . . . . . . . . . . . . . . . . . . . . . . . . . Times Spotted 480 | . 24 4 17 4 . 7 51 12 15 1 7 . 1 25 8 3 . 21 9 40 10 7 15 2 8 13 35 8 8 21 36 4 17 47 Peak Tracking Total 12 | . 4 3 5 4 . 4 8 5 7 1 4 . 1 3 3 5 . 10 3 7 5 1 4 2 9 7 12 3 2 4 10 5 5 8 Tactical Retreats 48 | . 1 2 1 . . . 12 1 4 . 2 . 1 5 5 3 . . . 1 . . 2 . . . . . . 1 5 . 1 1 Traps | -11 -10 -10 -9 -9 -9 -8 -8 -8 -7 -7 -7 -7 -6 -6 -6 -6 -6 -5 -5 -5 -5 -5 -5 -4 -4 -4 -4 -3 -3 -3 -2 -2 -1 -1 ------- Run | Yrd Mat Min Mat Min Exi Min Mat Sto Fac Low Low Dat Pro Fac Low Low Zio Pro Fac Ext Cet Arc Hub Fac Upp Upp War Pro Res Tes Res Qua Acc Com Traps Triggered 14 | . . . 3 1 . . . . . . . . . . . . . . 1 1 . . 3 1 . . . . . . . . . 4 Indirectly 1 | . . . . . . . . . . . . . . . . . . . . . . . 1 . . . . . . . . . . . Trap Hack Attempts . | . . . . . . . . . . . . . . . . . . . . . . . . . . . . . . . . . . . Triggered . | . . . . . . . . . . . . . . . . . . . . . . . . . . . . . . . . . . . Disarmed . | . . . . . . . . . . . . . . . . . . . . . . . . . . . . . . . . . . . Reprogrammed . | . . . . . . . . . . . . . . . . . . . . . . . . . . . . . . . . . . . Reused 1 | . . . . . . . . . . . . . . . 1 . . . . . . . . . . . . . . . . . . . Traps Extracted . | . . . . . . . . . . . . . . . . . . . . . . . . . . . . . . . . . . . Installed 1 | . . . . . . . . . . . . . . . 1 . . . . . . . . . . . . . . . . . . . Triggered 1 | . . . . . . . . . . . . . . . 1 . . . . . . . . . . . . . . . . . . . Most Traps Carried 2 | . . . . . . . . . . . . . . . 2 2 2 1 . . . . . . . . . . . . . . . . Machines | -11 -10 -10 -9 -9 -9 -8 -8 -8 -7 -7 -7 -7 -6 -6 -6 -6 -6 -5 -5 -5 -5 -5 -5 -4 -4 -4 -4 -3 -3 -3 -2 -2 -1 -1 ---------- Run | Yrd Mat Min Mat Min Exi Min Mat Sto Fac Low Low Dat Pro Fac Low Low Zio Pro Fac Ext Cet Arc Hub Fac Upp Upp War Pro Res Tes Res Qua Acc Com Machines Disabled 47 | . 6 . 1 . . . . 2 1 . . . . 6 . . . 1 1 2 . 2 9 1 . 2 . . 1 4 2 2 3 1 Max in Single Turn 7 | . 6 . 1 . . . . 1 1 . . . . 2 . . . 1 1 1 . 1 7 1 . 1 . . 1 1 1 1 1 1 Garrison Access 2 | . . . . . . . 1 . . . . . . . . . . . . . . . . . . . . . . . 1 . . . Network Hub 1 | . . . . . . . . . . . . . . . . . . . . . . . 1 . . . . . . . . . . . Machines Repaired . | . . . . . . . . . . . . . . . . . . . . . . . . . . . . . . . . . . . Machines Dismantled . | . . . . . . . . . . . . . . . . . . . . . . . . . . . . . . . . . . . Machines Sabotaged . | . . . . . . . . . . . . . . . . . . . . . . . . . . . . . . . . . . . Overloaded Fab Kills . | . . . . . . . . . . . . . . . . . . . . . . . . . . . . . . . . . . . Hacking | -11 -10 -10 -9 -9 -9 -8 -8 -8 -7 -7 -7 -7 -6 -6 -6 -6 -6 -5 -5 -5 -5 -5 -5 -4 -4 -4 -4 -3 -3 -3 -2 -2 -1 -1 --------- Run | Yrd Mat Min Mat Min Exi Min Mat Sto Fac Low Low Dat Pro Fac Low Low Zio Pro Fac Ext Cet Arc Hub Fac Upp Upp War Pro Res Tes Res Qua Acc Com Machines Accessed 80 | . 2 . 5 2 4 . 4 5 5 . . 4 . 6 2 . . 1 1 5 . . 3 4 2 2 1 . 2 7 1 6 4 2 Terminals 49 | . 2 . 2 1 . . 3 3 4 . . . . 6 1 . . 1 . 5 . . 3 2 . 1 . . 2 3 . 5 3 2 Fabricators 1 | . . . . . . . . . . . . . . . . . . . . . . . . 1 . . . . . . . . . . Repair Stations 4 | . . . . . . . . 1 . . . . . . . . . . 1 . . . . 1 . . . . . 1 . . . . Recycling Units 2 | . . . 1 . . . . . 1 . . . . . . . . . . . . . . . . . . . . . . . . . Scanalyzers 5 | . . . 2 . . . . . . . . . . . . . . . . . . . . . . . . . . 2 . 1 . . Garrison Access 5 | . . . . . . . 1 1 . . . . . . . . . . . . . . . . . . . . . 1 1 . 1 . Total Hacks 190 | . 7 . 7 3 4 . 9 13 13 . . 31 . 16 2 . . 1 1 9 . . 7 7 2 5 1 . 3 18 2 10 15 4 Successful 99 | . 2 . 4 2 4 . 4 5 4 . . 31 . 3 2 . . 1 1 1 . . 2 4 2 5 1 . 2 7 . 4 5 3 Failed 89 | . 4 . 2 1 . . 5 8 9 . . . . 13 . . . . . 8 . . 5 3 . . . . 1 11 2 6 10 1 Catastrophic 19 | . 2 . . . . . 2 2 1 . . . . 1 . . . . . 4 . . . 1 . . . . 1 2 1 2 . . Database Lockouts 2 | . 1 . 1 . . . . . . . . . . . . . . . . . . . . . . . . . . . . . . . Manual 46 | . 6 . . 2 . . 3 . 4 . . . . 4 . . . . . 6 . . 6 4 . . 1 . 1 . 1 1 5 2 Terminals 108 | . 7 . 3 2 . . 7 5 12 . . . . 16 1 . . 1 . 9 . . 7 2 . 4 . . 3 6 . 7 12 4 Fabricators 3 | . . . . . . . . . . . . . . . . . . . . . . . . 3 . . . . . . . . . . Repair Stations 9 | . . . . . . . . 3 . . . . . . . . . . 1 . . . . 2 . . . . . 3 . . . . Recycling Units 2 | . . . 1 . . . . . 1 . . . . . . . . . . . . . . . . . . . . . . . . . Scanalyzers 13 | . . . 3 . . . . . . . . . . . . . . . . . . . . . . . . . . 7 . 3 . . Garrison Access 14 | . . . . . . . 2 5 . . . . . . . . . . . . . . . . . . . . . 2 2 . 3 . Terminal Hacks 82 | . 2 . 2 2 4 . 3 4 3 . . 31 . 3 2 . . 1 . 1 . . 1 1 2 5 1 . 2 2 . 2 5 3 Record 22 | . . . . . 4 . . . . . . 11 . . 1 . . . . . . . . . 1 4 . . . . . . . 1 Part Schematic 12 | . 1 . . . . . . 1 . . . 10 . . . . . . . . . . . . . . . . . . . . . . Robot Schematic 8 | . . . . 1 . . . . . . . 7 . . . . . . . . . . . . . . . . . . . . . . Robot Analysis 1 | . . . . . . . . . . . . . . . . . . . . 1 . . . . . . . . . . . . . . Prototype ID Bank 7 | . . . 1 . . . 1 . 1 . . 3 . . . . . . . . . . . . . . . . . . . 1 . . Open Door 10 | . . . . 1 . . . 2 . . . . . . 1 . . 1 . . . . . . 1 1 1 . . 1 . . . 1 Branch Access Points 3 | . . . . . . . . . 1 . . . . 1 . . . . . . . . . . . . . . . . . . 1 . Emergency Access Points 1 | . . . . . . . . . . . . . . . . . . . . . . . . . . . . . . . . . . 1 Terminal Index 1 | . . . . . . . . . . . . . . . . . . . . . . . . . . . . . . . . 1 . . Unreport Threat 2 | . . . . . . . . . . . . . . . . . . . . . . . . 1 . . . . . . . . 1 . Locate Traps 1 | . . . . . . . 1 . . . . . . . . . . . . . . . . . . . . . . . . . . . Maintenance Status 2 | . 1 . . . . . . . . . . . . . . . . . . . . . . . . . . . . . . . 1 . Surveillance Status 1 | . . . . . . . . . . . . . . . . . . . . . . . . . . . . . 1 . . . . . Patrol Status 1 | . . . . . . . . . . . . . . 1 . . . . . . . . . . . . . . . . . . . . Transport Status 2 | . . . . . . . . 1 . . . . . 1 . . . . . . . . . . . . . . . . . . . . Hauler Manifests 2 | . . . 1 . . . . . . . . . . . . . . . . . . . . . . . . . 1 . . . . . Registered Components 3 | . . . . . . . 1 . 1 . . . . . . . . . . . . . . . . . . . . . . . 1 . Zone Layout 2 | . . . . . . . . . . . . . . . . . . . . . . . 1 . . . . . . . . . 1 . Protovariant Controls 1 | . . . . . . . . . . . . . . . . . . . . . . . . . . . . . . 1 . . . . Fabricator Hacks . | . . . . . . . . . . . . . . . . . . . . . . . . . . . . . . . . . . . Repair Station Hacks 4 | . . . . . . . . 1 . . . . . . . . . . 1 . . . . 2 . . . . . . . . . . Scan Component 1 | . . . . . . . . . . . . . . . . . . . . . . . . 1 . . . . . . . . . . Repair 1 | . . . . . . . . . . . . . . . . . . . . . . . . 1 . . . . . . . . . . Refit 2 | . . . . . . . . 1 . . . . . . . . . . 1 . . . . . . . . . . . . . . . Recycling Unit Hacks 2 | . . . 1 . . . . . 1 . . . . . . . . . . . . . . . . . . . . . . . . . Report Inventory 2 | . . . 1 . . . . . 1 . . . . . . . . . . . . . . . . . . . . . . . . . Scanalyzer 8 | . . . 1 . . . . . . . . . . . . . . . . . . . . . . . . . . 5 . 2 . . Retrieve Study 8 | . . . 1 . . . . . . . . . . . . . . . . . . . . . . . . . . 5 . 2 . . Garrison Access Hacks 1 | . . . . . . . 1 . . . . . . . . . . . . . . . . . . . . . . . . . . . Seal Access 1 | . . . . . . . 1 . . . . . . . . . . . . . . . . . . . . . . . . . . . Unauthorized Hacks 2 | . . . . . . . . . . . . . . . . . . . . . . . 1 1 . . . . . . . . . . Terminals 1 | . . . . . . . . . . . . . . . . . . . . . . . 1 . . . . . . . . . . . Sabotage 1 | . . . . . . . . . . . . . . . . . . . . . . . 1 . . . . . . . . . . . Fabricators 1 | . . . . . . . . . . . . . . . . . . . . . . . . 1 . . . . . . . . . . Liberate 1 | . . . . . . . . . . . . . . . . . . . . . . . . 1 . . . . . . . . . . Repair Stations . | . . . . . . . . . . . . . . . . . . . . . . . . . . . . . . . . . . . Recycling Units . | . . . . . . . . . . . . . . . . . . . . . . . . . . . . . . . . . . . Scanalyzers . | . . . . . . . . . . . . . . . . . . . . . . . . . . . . . . . . . . . Garrison Access . | . . . . . . . . . . . . . . . . . . . . . . . . . . . . . . . . . . . Data Cores Recovered . | . . . . . . . . . . . . . . . . . . . . . . . . . . . . . . . . . . . Used . | . . . . . . . . . . . . . . . . . . . . . . . . . . . . . . . . . . . Hacking Detections 50 | . 2 . 2 1 . . 3 3 4 . . . . 6 . . . . . 5 . . 2 3 . 1 . . 1 5 1 6 4 1 Full Trace Events 5 | . 1 . . . . . . 1 1 . . . . 1 . . . . . . . . . . . . . . . . 1 . . . Feedback Events . | . . . . . . . . . . . . . . . . . . . . . . . . . . . . . . . . . . . Feedback Blocked . | . . . . . . . . . . . . . . . . . . . . . . . . . . . . . . . . . . . Robot Schematics Acquired 9 | . . . . 1 . . . . . . . 7 . . . . . . . . . . . . . . . . . 1 . . . . Robots Built . | . . . . . . . . . . . . . . . . . . . . . . . . . . . . . . . . . . . Authchips . | . . . . . . . . . . . . . . . . . . . . . . . . . . . . . . . . . . . Time . | . . . . . . . . . . . . . . . . . . . . . . . . . . . . . . . . . . . Total Robot Build Rating . | . . . . . . . . . . . . . . . . . . . . . . . . . . . . . . . . . . . Part Schematics Acquired 15 | . 1 . . . . . . 1 . . . 10 . . . . . . . . . . . . . . . . . 3 . . . . Parts Built . | . . . . . . . . . . . . . . . . . . . . . . . . . . . . . . . . . . . Authchips . | . . . . . . . . . . . . . . . . . . . . . . . . . . . . . . . . . . . Time . | . . . . . . . . . . . . . . . . . . . . . . . . . . . . . . . . . . . Total Part Build Rating . | . . . . . . . . . . . . . . . . . . . . . . . . . . . . . . . . . . . Part Studies Acquired 8 | . . . 1 . . . . . . . . . . . . . . . . . . . . . . . . . . 5 . 2 . . Parts Repaired 1 | . . . . . . . . . . . . . . . . . . . . . . . . 1 . . . . . . . . . . Time 18 | . . . . . . . . . . . . . . . . . . . . . . . . 18 . . . . . . . . . . Parts Recycled . | . . . . . . . . . . . . . . . . . . . . . . . . . . . . . . . . . . . Recycled Matter . | . . . . . . . . . . . . . . . . . . . . . . . . . . . . . . . . . . . Retrieved Matter . | . . . . . . . . . . . . . . . . . . . . . . . . . . . . . . . . . . . Retrieved Components . | . . . . . . . . . . . . . . . . . . . . . . . . . . . . . . . . . . . Parts Scanalyzed . | . . . . . . . . . . . . . . . . . . . . . . . . . . . . . . . . . . . Part Schematics Acquired . | . . . . . . . . . . . . . . . . . . . . . . . . . . . . . . . . . . . Parts Damaged . | . . . . . . . . . . . . . . . . . . . . . . . . . . . . . . . . . . . Bothacking | -11 -10 -10 -9 -9 -9 -8 -8 -8 -7 -7 -7 -7 -6 -6 -6 -6 -6 -5 -5 -5 -5 -5 -5 -4 -4 -4 -4 -3 -3 -3 -2 -2 -1 -1 ------------ Run | Yrd Mat Min Mat Min Exi Min Mat Sto Fac Low Low Dat Pro Fac Low Low Zio Pro Fac Ext Cet Arc Hub Fac Upp Upp War Pro Res Tes Res Qua Acc Com Used RIF Installer . | . . . . . . . . . . . . . . . . . . . . . . . . . . . . . . . . . . . Robots Hacked 1 | . . . . . . . . . . . . 1 . . . . . . . . . . . . . . . . . . . . . . Non-combat . | . . . . . . . . . . . . . . . . . . . . . . . . . . . . . . . . . . . Combat 1 | . . . . . . . . . . . . 1 . . . . . . . . . . . . . . . . . . . . . . Robot Hacks Applied 1 | . . . . . . . . . . . . 1 . . . . . . . . . . . . . . . . . . . . . . parse_system 1 | . . . . . . . . . . . . 1 . . . . . . . . . . . . . . . . . . . . . . Relay Couplers Released 1 | . . . . . . . . . . . . . . . . . . . . . . . . . . . . . . . 1 . . . Machine Destruction 1 | . . . . . . . . . . . . . . . . . . . . . . . . . . . . . . . 1 . . . Fabnet Peak Effective % . | . . . . . . . . . . . . . . . . . . . . . . . . . . . . . . . . . . . Robots Rewired 18 | . . . . . . . . . . . . . . . . . . . . 13 . . . . . . 5 . . . . . . . Allies Hacked 2 | . . . . . . . . . . . . . . . . . . . . . . . . . . . 1 . . 1 . . . . Hacks Repelled . | . . . . . . . . . . . . . . . . . . . . . . . . . . . . . . . . . . . Allies | -11 -10 -10 -9 -9 -9 -8 -8 -8 -7 -7 -7 -7 -6 -6 -6 -6 -6 -5 -5 -5 -5 -5 -5 -4 -4 -4 -4 -3 -3 -3 -2 -2 -1 -1 -------- Run | Yrd Mat Min Mat Min Exi Min Mat Sto Fac Low Low Dat Pro Fac Low Low Zio Pro Fac Ext Cet Arc Hub Fac Upp Upp War Pro Res Tes Res Qua Acc Com Total Allies 49 | . . 3 . 2 . . . 10 . . . . . . . . 4 . . 21 . . . 2 . . 5 . . . . . . 2 Largest Group 16 | . . 3 3 2 . . . 10 5 . . . . . . . 4 4 . 16 14 7 6 2 . . 5 4 4 4 . . . 2 Highest-Rated Group 440 | . . 40 40 49 . . . 173 93 . . . . . . . 84 84 . 440 400 195 175 108 . . 271 213 213 213 . . . 192 Highest-Rated Ally 159 | . . 16 16 31 . . . 29 29 . . . . . . . 31 31 . 159 39 39 39 54 . . 64 64 64 64 . . . 96 Total Orders 6 | . . . . 3 . . . . . . . . . . . . . . . . . 2 . . . . . . . 1 . . . . STAY 4 | . . . . 2 . . . . . . . . . . . . . . . . . 1 . . . . . . . 1 . . . . FOLLOW 2 | . . . . 1 . . . . . . . . . . . . . . . . . 1 . . . . . . . . . . . . Ally Attacks 485 | . . . 46 1 . . . 74 16 . . . . . . . . 47 . 95 43 17 28 15 . . 52 15 2 23 . . . 11 Total Damage 9882 | . . . 375 13 . . . 928 161 . . . . . . . . 674 . 1796 782 235 369 142 . . 2555 935 60 491 . . . 366 Kills 61 | . . . 4 1 . . . 10 1 . . . . . . . . 4 . 10 6 1 3 . . . 10 5 1 3 . . . 2 Allies Corrupted 1 | . . . . . . . . . . . . . . . . . . . . . . . 1 . . . . . . . . . . . Allies Melted 4 | . . . . . . . . . . . . . . . . . . . . 1 . . . . . . 2 . . . 1 . . . Intel | -11 -10 -10 -9 -9 -9 -8 -8 -8 -7 -7 -7 -7 -6 -6 -6 -6 -6 -5 -5 -5 -5 -5 -5 -4 -4 -4 -4 -3 -3 -3 -2 -2 -1 -1 ------- Run | Yrd Mat Min Mat Min Exi Min Mat Sto Fac Low Low Dat Pro Fac Low Low Zio Pro Fac Ext Cet Arc Hub Fac Upp Upp War Pro Res Tes Res Qua Acc Com Active Infowar (turns) 22368 | . 381 154 782 1146 647 114 21 93 . 1141 767 . 376 290 1120 838 1033 904 630 1572 383 501 652 651 1119 958 1058 605 600 875 1170 308 421 1058 Optics 7754 | . . . . . . . . . . . . . . . . . . . . 12 383 501 652 651 1119 958 1058 605 600 875 340 . . . Sensors 12118 | . 381 154 782 1146 647 114 . . . 1141 767 . 376 290 . . . . . . . . . 7 1119 799 903 558 600 595 1007 308 421 3 Seismic 5070 | . . . . . . . 21 93 . . . . . . 1120 838 1033 835 . . . . . . . . . . . . 75 . . 1055 Decoding 11909 | . . . . . . . . . . . . . . . 850 838 1033 904 630 1572 383 501 652 651 1119 958 1058 605 155 . . . . . Robot Analysis Total 1 | . . . . . . . . . . . . . . . . . . . . 1 . . . . . . . . . . . . . . Derelict Logs Recovered 14 | . . 1 . 1 . . . . . . 2 . 1 . 1 2 1 2 . . . . . . 2 1 . . . . . . . . Drone Launches . | . . . . . . . . . . . . . . . . . . . . . . . . . . . . . . . . . . . Drone Recoveries . | . . . . . . . . . . . . . . . . . . . . . . . . . . . . . . . . . . . Decoded 0b10 Intel 116 | . . . . . . . . . . . . . . . . . . . 20 48 4 2 19 19 . . . . 4 . . . . . Traps 20 | . . . . . . . . . . . . . . . . . . . 5 11 . . 2 2 . . . . . . . . . . Emergency Access 12 | . . . . . . . . . . . . . . . . . . . 1 5 . . 3 3 . . . . . . . . . . Items 58 | . . . . . . . . . . . . . . . . . . . 10 23 1 . 9 12 . . . . 3 . . . . . Machines 16 | . . . . . . . . . . . . . . . . . . . 4 6 2 1 2 1 . . . . . . . . . . Patrols 4 | . . . . . . . . . . . . . . . . . . . . 1 . . 2 1 . . . . . . . . . . Guards 2 | . . . . . . . . . . . . . . . . . . . . . . . 1 . . . . . 1 . . . . . Exits 4 | . . . . . . . . . . . . . . . . . . . . 2 1 1 . . . . . . . . . . . . Exploration | -11 -10 -10 -9 -9 -9 -8 -8 -8 -7 -7 -7 -7 -6 -6 -6 -6 -6 -5 -5 -5 -5 -5 -5 -4 -4 -4 -4 -3 -3 -3 -2 -2 -1 -1 ------------- Run | Yrd Mat Min Mat Min Exi Min Mat Sto Fac Low Low Dat Pro Fac Low Low Zio Pro Fac Ext Cet Arc Hub Fac Upp Upp War Pro Res Tes Res Qua Acc Com Turns Passed 25670 | 90 899 154 782 1149 647 355 1147 336 371 1185 821 56 385 720 1134 838 1033 904 630 1572 383 501 652 651 1119 958 1058 605 600 875 1208 308 427 1117 Spaces Moved 17843 | 55 476 104 545 850 513 212 532 368 377 894 994 91 581 640 853 720 1123 574 335 836 160 130 309 367 684 523 564 331 306 409 1041 240 293 813 Core 316 | 11 . . . . . . . . . . . . . 17 268 . . . 1 . . . . . . . . . . . 19 . . . Treads 4791 | 44 108 . . . . . 443 . . . . . . . . . . . 2 305 160 130 309 367 684 523 564 331 306 409 106 . . . Legs 5397 | . 368 104 545 850 513 212 36 . . . . . . 12 . . 163 50 203 531 . . . . . . . . . . 464 240 293 813 Wheels 1901 | . . . . . . . . . . . . . . . . 364 941 483 113 . . . . . . . . . . . . . . . Hover 4620 | . . . . . . . . 55 377 894 994 91 581 611 585 356 19 41 16 . . . . . . . . . . . . . . . Flight 818 | . . . . . . . 53 313 . . . . . . . . . . . . . . . . . . . . . . 452 . . . Fastest Speed 25 | 50 120 120 120 120 126 126 35 32 63 65 58 58 58 50 50 80 80 81 100 120 160 160 160 160 160 160 160 163 163 163 25 99 98 98 Average Speed 115 | 138 129 120 120 120 126 132 147 50 66 119 67 58 58 76 114 112 88 111 137 134 160 160 160 160 160 160 160 163 163 182 83 108 98 99 Slowest Speed 350 | 160 190 120 190 190 126 200 320 195 138 156 138 58 58 124 210 140 140 140 350 240 160 160 160 160 160 160 163 240 163 219 290 111 98 182 Overloaded Moves . | . . . . . . . . . . . . . . . . . . . . . . . . . . . . . . . . . . . Propulsion Burnouts . | . . . . . . . . . . . . . . . . . . . . . . . . . . . . . . . . . . . Robots Hopped 7 | . . . . . . . . 7 . . . . . . . . . . . . . . . . . . . . . . . . . . Potential Cave-ins . | . . . . . . . . . . . . . . . . . . . . . . . . . . . . . . . . . . . Cave-ins Triggered . | . . . . . . . . . . . . . . . . . . . . . . . . . . . . . . . . . . . Exploration Rate (%) 54 | 3 81 18 51 99 93 32 54 67 15 89 82 75 83 21 84 81 88 39 7 87 60 92 29 8 94 70 72 63 8 59 24 28 10 31 Regions Visited 34 Branch Regions 24 Pre-discovered Areas 8 | . . . . . . . . . . . 1 1 . . . 1 3 . . . . . . . 1 1 . . . . . . . . Known Exits Taken 20 | . . . 1 1 . . . . 1 1 1 1 1 1 1 1 1 1 1 1 . . 1 . . . . . 1 1 1 1 1 . Unknown Exits Taken 14 | 1 1 1 . . 1 1 1 1 . . . . . . . . . . . . 1 1 . 1 1 1 1 1 . . . . . . Scrap Searched 31 | . . . . 2 . . . . . 3 3 . 3 . 3 3 4 1 . . . . . . 5 3 . 1 . . . . . . Spaces Dug 40 | . . . . . . . . . 2 5 1 . 3 8 . 1 . 6 1 . . . 5 3 . . . . . . . . 4 1 Terrain Destroyed 633 | . 13 . . . . . 22 . 2 48 4 . 3 32 10 1 . 32 6 22 7 27 183 6 . 15 34 26 17 39 52 11 9 12 Melee 23 | . . . . . . . . . 2 5 1 . 3 8 . 1 . 2 1 . . . . . . . . . . . . . . . Projectile 284 | . . . . . . . . . . . . . . . . . . 13 2 12 7 27 39 6 . 15 34 26 17 38 18 10 9 11 AOE 323 | . 13 . . . . . 22 . . 43 3 . . 24 10 . . 17 3 10 . . 144 . . . . . . . 34 . . . Terrain Rammed . | . . . . . . . . . . . . . . . . . . . . . . . . . . . . . . . . . . . Walls Destroyed . | . . . . . . . . . . . . . . . . . . . . . . . . . . . . . . . . . . . Machines Disabled . | . . . . . . . . . . . . . . . . . . . . . . . . . . . . . . . . . . . Actions | -11 -10 -10 -9 -9 -9 -8 -8 -8 -7 -7 -7 -7 -6 -6 -6 -6 -6 -5 -5 -5 -5 -5 -5 -4 -4 -4 -4 -3 -3 -3 -2 -2 -1 -1 --------- Run | Yrd Mat Min Mat Min Exi Min Mat Sto Fac Low Low Dat Pro Fac Low Low Zio Pro Fac Ext Cet Arc Hub Fac Upp Upp War Pro Res Tes Res Qua Acc Com Total 21281 | 66 638 118 637 936 514 246 770 482 443 986 1115 92 621 792 981 744 1159 729 444 1161 264 388 398 412 703 594 681 377 380 480 1317 269 371 973 Wait 1417 | 3 59 7 34 31 . 7 108 63 14 68 59 . 26 68 71 15 19 35 21 54 47 233 56 28 9 34 7 34 41 10 94 4 9 49 Move 17796 | 54 475 103 544 849 512 211 531 354 376 893 993 90 580 639 852 719 1122 573 334 835 159 129 308 366 683 522 563 330 305 408 1040 239 292 813 Hop 6 | . . . . . . . . 6 . . . . . . . . . . . . . . . . . . . . . . . . . . Pick Up 216 | 3 16 . 13 2 . . 13 6 4 . 8 . . 5 8 . 3 2 8 33 9 5 1 3 2 5 12 . 3 5 31 4 6 6 Fast Attach 206 | 6 3 . 1 8 . 2 7 9 7 1 3 . 3 4 5 4 7 6 26 14 8 1 1 1 1 . 3 4 4 9 41 1 7 9 Attach 103 | . . . 2 . . 1 12 8 3 5 8 . . 2 9 . . 1 4 6 1 . . 2 . 3 1 . 4 2 18 . 5 6 Detach 40 | . . . 1 . . . 1 8 . 2 6 . . . 3 1 . . 2 2 1 . . . . 1 . . 1 1 8 . 1 1 Swap 140 | . 6 . 6 1 1 . 5 . 1 4 4 1 3 7 1 . . 12 4 14 6 . 2 3 1 4 8 3 4 12 7 2 9 9 Drop 308 | . 13 . 11 8 1 . 15 7 7 1 5 . 3 10 5 1 8 5 10 38 21 5 1 1 4 3 21 . 6 14 41 6 15 22 Fire 548 | . 33 . . 25 . . 4 . . 3 25 . 3 3 20 . . 78 19 56 12 15 29 8 3 22 20 6 12 19 36 12 27 58 Melee 341 | . 33 8 25 12 . 25 74 20 31 8 4 1 3 54 6 4 . 17 16 . . . . . . . . . . . . . . . Ram 2 | . . . . . . . . 1 . 1 . . . . . . . . . . . . . . . . . . . . . . . . Kick 2 | . . . . . . . . . . . . . . . . . . . . 1 . . . . . . . . . . . 1 . . Crush 1 | . . . . . . . . . . . . . . . . . . . . . . . . . . . . . . . 1 . . . Escape Stasis 5 | . . . . . . . . . . . . . . . . . . . . 5 . . . . . . . . . . . . . . Rewire 149 | . . . . . . . . . . . . . . . . . . . . 103 . . . . . . 46 . . . . . . . Trap 1 | . . . . . . . . . . . . . . . 1 . . . . . . . . . . . . . . . . . . . Miscellaneous . | . . . . . . . . . . . . . . . . . . . . . . . . . . . . . . . . . . . Route ------- -11/Scrapyard -10/Materials (discovered 3 exits: *Mat x2 / [*Min]) -10/Mines (discovered 2 exits: *Mat x2) -9/Materials (discovered 4 exits: *Mat x2 / *Min x2) -9/Mines (discovered 3 exits: *Mat x2 / *Exi) -9/Exiles (discovered 2 exits: [*Min x2]) -8/Mines -8/Materials (discovered 2 exits: *Sto x2) -8/Storage -7/Factory (discovered 3 exits: *Fac / *Low x2) -7/Lower Caves -7/Lower Caves (discovered 2 exits: *Fac / *Dat) -7/Data Miner -6/Proximity Caves -6/Factory (discovered 3 exits: *Fac / *Low x2) -6/Lower Caves -6/Lower Caves (discovered 2 exits: *Fac / *Zio) -6/Zion -5/Proximity Caves -5/Factory (discovered 5 exits: Fac / Upp x2 / *Ext x2) -5/Extension (discovered 3 exits: *Fac x2 / *Cet) -5/Cetus (discovered 2 exits: *Fac / [*Arc]) -5/Archives (discovered 3 exits: *Fac / *Hub x2) -5/Hub_04(d) -4/Factory -4/Upper Caves -4/Upper Caves (discovered 2 exits: *Res / *War) -4/Warlord -3/Proximity Caves -3/Research (discovered 2 exits: *Tes x2) -3/Testing -2/Research -2/Quarantine -1/Access -1/Command Free Derelict Territories History --------- Turn | Location | Event 5 | -11/Scrapyard | Discovered new exit (range 16) 91 | -11/Scrapyard | Entered Materials 301 | -10/Materials | Build established: Mutant 427 | -10/Materials | Discovered new exit (range 15) 552 | -10/Materials | Discovered new exit (range 15) 777 | -10/Materials | Central database locked down 939 | -10/Materials | Discovered new exit (range 13) 990 | -10/Materials | Entered Mines 994 | -10/Mines | Learned location of 2 exits from Materials 1037 | -10/Mines | Core integrity fell below 50% 1064 | -10/Mines | Discovered new exit (range 4) 1071 | -10/Mines | Discovered new exit (range 5) 1091 | -10/Mines | Assisted by bots powering up and referring to "LRC-V3" 1144 | -10/Mines | Entered Materials 1144 | -9/Materials | Accompanied by 3 allies 1144 | -9/Materials | Evolved 2 slots: Propulsion x1, Utility x1 1145 | -9/Materials | Identified exit to Mines 1522 | -9/Materials | Discovered new exit (range 11) 1573 | -9/Materials | Central database locked down 1693 | -9/Materials | Discovered new exit (range 15) 1926 | -9/Materials | Entered Mines 1926 | -9/Mines | Accompanied by 1 ally 1928 | -9/Mines | Discovered new exit (range 14) 2304 | -9/Mines | Discovered new exit (range 9) 2356 | -9/Mines | Identified exit to Exiles 2494 | -9/Mines | Met a Derelict who couldn't figure out how to use a Trap Extractor 2731 | -9/Mines | Found a damaged Exp. Sensor Array with a note attached 2734 | -9/Mines | Found Prototype Device 2734 | -9/Mines | Identified Exp. Sensor Array 2765 | -9/Mines | Found a hidden stash of uninstalled traps 2867 | -9/Mines | Deemed a non-threat by the Exiles lab entrance 3075 | -9/Mines | Entered Exiles 3075 | -9/Exiles | Found Exiles lab abandoned 3097 | -9/Exiles | Discovered new exit (range 15) 3707 | -9/Exiles | Discovered new exit (range 14) 3722 | -9/Exiles | Entered Mines 3889 | -8/Mines | Lost 4 parts (1p2n1u) 3953 | -8/Mines | Discovered new exit (range 10) 4077 | -8/Mines | Entered Materials 4077 | -8/Materials | Evolved 2 slots: Utility x1, Weapon x1 4859 | -8/Materials | Discovered new exit (range 10) 5218 | -8/Materials | Discovered new exit (range 10) 5224 | -8/Materials | Entered Storage 5231 | -8/Storage | Lost 6 parts (1p3n2u) 5307 | -8/Storage | Assisted by bots powering up and referring to "LRC-V3" 5414 | -8/Storage | Garrison activated, responded to threat 5530 | -8/Storage | Discovered new exit (range 15) 5552 | -8/Storage | Lost 4 allies 5560 | -8/Storage | Entered Factory 5560 | -7/Factory | Accompanied by 5 allies 5560 | -7/Factory | Evolved 2 slots: Propulsion x1, Utility x1 5695 | -7/Factory | Lost 5 allies 5737 | -7/Factory | Discovered new exit (range 15) 5763 | -7/Factory | Identified exit to Lower Caves 5823 | -7/Factory | Lost 3 parts (1n1u1w) 5931 | -7/Factory | Entered Lower Caves 6959 | -7/Lower Caves | Discovered new exit (range 13) 6973 | -7/Lower Caves | Identified exit to Lower Caves 6984 | -7/Lower Caves | Encountered a Warlord checkpoint 7116 | -7/Lower Caves | Entered another Lower Caves area 7135 | -7/Lower Caves | Discovered new exit (range 5) 7138 | -7/Lower Caves | Identified exit to Factory 7223 | -7/Lower Caves | Encountered a Warlord checkpoint 7490 | -7/Lower Caves | Learned location of Zion (-6) 7688 | -7/Lower Caves | Discovered new exit (range 9) 7693 | -7/Lower Caves | Identified exit to Data Miner 7737 | -7/Lower Caves | Found Alien Artifact 7739 | -7/Lower Caves | Identified Core Expander 7739 | -7/Lower Caves | Installed Core Expander, added new Utility slot 7908 | -7/Lower Caves | Learned Factory terminal intel 7937 | -7/Lower Caves | Entered Data Miner 7939 | -7/Data Miner | Discovered new exit (range 6) 7941 | -7/Data Miner | Identified exit to Proximity Caves 7950 | -7/Data Miner | Met Data Miner 7966 | -7/Data Miner | Learned location of Section 7 (-2) 7966 | -7/Data Miner | Acquired the access code to Warlord's prototype stash 7971 | -7/Data Miner | Received God Mode back door access code from Data Miner 7993 | -7/Data Miner | Entered Proximity Caves 8097 | -6/Proximity Caves | Attracted the attention of an 0b10 checkpoint 8176 | -6/Proximity Caves | Build established: Scavenger-Gladiator 8334 | -6/Proximity Caves | Discovered exit to Factory (range 16) 8378 | -6/Proximity Caves | Entered Factory 8378 | -6/Factory | Evolved 2 slots: Propulsion x1, Utility x1 8379 | -6/Factory | Loaded intel: 26 terminal locations 8609 | -6/Factory | Discovered new exit (range 7) 8643 | -6/Factory | Identified exit to Lower Caves 9098 | -6/Factory | Entered Lower Caves 9124 | -6/Lower Caves | Lost 9 parts (1p5n1u2w) 9376 | -6/Lower Caves | Build established: Mutant 9498 | -6/Lower Caves | Discovered new exit (range 7) 9931 | -6/Lower Caves | Build established: Derelict-Gladiator 10022 | -6/Lower Caves | Learned location of 1 exit from Factory 10229 | -6/Lower Caves | Identified exit to Lower Caves 10232 | -6/Lower Caves | Entered another Lower Caves area 10233 | -6/Lower Caves | Encountered a Warlord checkpoint 10241 | -6/Lower Caves | Learned Factory stockpile data 10254 | -6/Lower Caves | Discovered new exit (range 15) 10293 | -6/Lower Caves | Identified exit to Factory 11041 | -6/Lower Caves | Discovered new exit (range 16) 11050 | -6/Lower Caves | Spotted B-75 Beast 11063 | -6/Lower Caves | Identified exit to Zion 11070 | -6/Lower Caves | Entered Zion 11171 | -6/Zion | Discovered new exit (range 10) 11178 | -6/Zion | Identified exit to Proximity Caves 11204 | -6/Zion | Found Prototype Special Weapon 11204 | -6/Zion | Identified RU-N14's Throwing Claymores 11207 | -6/Zion | Found RU-N14's Throwing Claymores 11345 | -6/Zion | Learned location of Warlord (-4) 11449 | -6/Zion | Learned location of Extension (-5) 11536 | -6/Zion | Gained Derelict followers 11564 | -6/Zion | Given A8's code to call for help 11730 | -6/Zion | Met Imprinter 12052 | -6/Zion | Found RU-N14's Throwing Claymores 12103 | -6/Zion | Entered Proximity Caves 12103 | -5/Proximity Caves | Accompanied by 4 allies 12172 | -5/Proximity Caves | Learned Factory security intel 12205 | -5/Proximity Caves | Learned 12 Factory zone layouts 12289 | -5/Proximity Caves | Attracted the attention of an 0b10 checkpoint 12574 | -5/Proximity Caves | Build established: Derelict-Mutant 12832 | -5/Proximity Caves | Dug into a huge 0b10 base via an incomplete storage room 13002 | -5/Proximity Caves | Discovered exit to Factory (range 5) 13006 | -5/Proximity Caves | Core integrity fell below 50% 13007 | -5/Proximity Caves | Entered Factory 13007 | -5/Factory | Evolved 2 slots: Power x1, Weapon x1 13008 | -5/Factory | Identified exit to Upper Caves 13010 | -5/Factory | Identified exit to Extension 13010 | -5/Factory | Identified exit to Factory 13037 | -5/Factory | Lost 4 parts (1p1n2u) 13273 | -5/Factory | Lost 6 parts (2n2u2w) 13326 | -5/Factory | Lost 5 parts (1p1n2u1w) 13415 | -5/Factory | Lost 3 parts (1u2w) 13637 | -5/Factory | Entered Extension 13721 | -5/Extension | Build established: Scavenger-Gunner 13762 | -5/Extension | Rescued a captive Derelict 13764 | -5/Extension | Rescued a captive Derelict 13898 | -5/Extension | Rescued a captive Derelict 13899 | -5/Extension | Rescued a captive Derelict 13965 | -5/Extension | Rescued A7 14402 | -5/Extension | Spotted B-75 Beast 14419 | -5/Extension | Allies destroyed B-75 Beast 14429 | -5/Extension | Spotted B-75 Beast 14458 | -5/Extension | Destroyed B-75 Beast 14465 | -5/Extension | Extracted ID and sensor layout for unrecognized location from A7's data core 14593 | -5/Extension | Rescued a captive Derelict 14593 | -5/Extension | Rescued a captive Derelict 14939 | -5/Extension | Rescued a captive Derelict 14941 | -5/Extension | Rescued a captive Derelict 15121 | -5/Extension | Identified exit to Cetus 15137 | -5/Extension | Discovered exit to Factory (range 10) 15161 | -5/Extension | Disrupted transfer network 15209 | -5/Extension | Entered Cetus 15209 | -5/Cetus | Accompanied by 14 allies 15228 | -5/Cetus | Spotted Cetus Guard 15228 | -5/Cetus | Spotted Cetus Guard 15228 | -5/Cetus | Spotted Cetus Guard 15228 | -5/Cetus | Spotted Cetus Guard 15234 | -5/Cetus | Allies destroyed Cetus Guard 15246 | -5/Cetus | Allies destroyed Cetus Guard 15252 | -5/Cetus | Allies destroyed Cetus Guard 15256 | -5/Cetus | Allies destroyed Cetus Guard 15279 | -5/Cetus | Lost 4 allies 15363 | -5/Cetus | Discovered new exit (range 21) 15418 | -5/Cetus | Spotted Cetus Guard 15418 | -5/Cetus | Spotted Cetus Guard 15418 | -5/Cetus | Spotted Cetus Guard 15418 | -5/Cetus | Spotted Cetus Guard 15428 | -5/Cetus | Allies destroyed Cetus Guard 15428 | -5/Cetus | Allies destroyed Cetus Guard 15434 | -5/Cetus | Destroyed Cetus Guard 15441 | -5/Cetus | Destroyed Cetus Guard 15464 | -5/Cetus | Lost 3 allies 15466 | -5/Cetus | Met Revision 17 15591 | -5/Cetus | Build established: Scavenger-Tank 15592 | -5/Cetus | Entered Archives 15592 | -5/Archives | Accompanied by 7 allies 15638 | -5/Archives | Discovered new exit (range 22) 15657 | -5/Archives | Discovered new exit (range 19) 16093 | -5/Archives | Entered Hub_04(d) 16093 | -5/Hub_04(d) | Accompanied by 6 allies 16198 | -5/Hub_04(d) | Garrison activated, responded to threat 16247 | -5/Hub_04(d) | Lost 3 allies 16341 | -5/Hub_04(d) | Discovered exit to Factory (range 9) 16619 | -5/Hub_04(d) | Network Hub disabled 16745 | -5/Hub_04(d) | Entered Factory 16745 | -4/Factory | Evolved 2 slots: Utility x2 16768 | -4/Factory | Discovered new exit (range 11) 17118 | -4/Factory | Repaired KE Penetrator 17396 | -4/Factory | Entered Upper Caves 17472 | -4/Upper Caves | Attracted the attention of an 0b10 checkpoint 17550 | -4/Upper Caves | Learned Research terminal intel 18055 | -4/Upper Caves | Entered a destroyed Warlord outpost 18502 | -4/Upper Caves | Discovered new exit (range 9) 18510 | -4/Upper Caves | Attracted the attention of an 0b10 outpost 18515 | -4/Upper Caves | Entered another Upper Caves area 18584 | -4/Upper Caves | Discovered new exit (range 8) 18728 | -4/Upper Caves | Learned Research trap positions 18935 | -4/Upper Caves | Attracted the attention of an 0b10 base 18977 | -4/Upper Caves | Destroyed 7 combat bots 18982 | -4/Upper Caves | Learned Research garrison access intel 18982 | -4/Upper Caves | Learned location of 1 exit from Factory 19017 | -4/Upper Caves | Spotted B-86 Titan 19230 | -4/Upper Caves | Build established: Scavenger-Gunner 19358 | -4/Upper Caves | Discovered new exit (range 10) 19473 | -4/Upper Caves | Entered Warlord 19526 | -4/Warlord | System corruption cleaned by Quarantine Array 19902 | -4/Warlord | Received a Watcher feed algorithm from an ecstatic Tinkerer 19923 | -4/Warlord | Met Warlord 19948 | -4/Warlord | Warlord's base attacked by MAIN.C 20014 | -4/Warlord | Opened Warlord's prototype stash 20024 | -4/Warlord | Found System Mapper 20040 | -4/Warlord | Found Prototype Processor 20047 | -4/Warlord | Found Prototype Device 20057 | -4/Warlord | Found Prototype Reactor 20062 | -4/Warlord | Identified Exp. Targeting Computer 20065 | -4/Warlord | Identified Vortex Chain Reactor 20109 | -4/Warlord | Identified Thermal Barrier 20248 | -4/Warlord | Met EX-DEC 20258 | -4/Warlord | Found Prototype Energy Cannon 20269 | -4/Warlord | Found Prototype Energy Gun 20269 | -4/Warlord | Identified Vortex Rifle 20273 | -4/Warlord | Found Vortex Rifle 20298 | -4/Warlord | Warlord forces counterattacked 20340 | -4/Warlord | Spotted B-86 Titan 20372 | -4/Warlord | Lost 5 allies 20372 | -4/Warlord | Spotted Striker 20386 | -4/Warlord | P-70 Sage assimilated allied KT-3PV(g) 20406 | -4/Warlord | Spotted Striker 20414 | -4/Warlord | Destroyed Striker 20446 | -4/Warlord | Lost 6 allies 20466 | -4/Warlord | Spotted Executioner 20470 | -4/Warlord | Spotted Striker 20482 | -4/Warlord | Allies destroyed Executioner 20490 | -4/Warlord | Discovered new exit (range 17) 20511 | -4/Warlord | System corruption reached 10% 20531 | -4/Warlord | Entered Proximity Caves 20531 | -3/Proximity Caves | Accompanied by 4 allies 20645 | -3/Proximity Caves | Build established: Scavenger-Tank 21084 | -3/Proximity Caves | Discovered new exit (range 12) 21136 | -3/Proximity Caves | Entered Research 21136 | -3/Research | Accompanied by 4 allies 21136 | -3/Research | Evolved 2 slots: Weapon x2 21137 | -3/Research | Loaded intel: 69 trap records 21138 | -3/Research | Loaded intel: 23 terminal locations 21139 | -3/Research | Loaded intel: 3 garrison access locations 21139 | -3/Research | Identified BFG-9k Vortex Edition 21312 | -3/Research | Discovered new exit (range 22) 21336 | -3/Research | Revision forces began assault on 0b10 21370 | -3/Research | Met up with Revision 17++ 21371 | -3/Research | Identified exit to Testing 21389 | -3/Research | Discovered exit to Testing (range 22) 21422 | -3/Research | Build established: Scavenger-Executioner 21736 | -3/Research | Entered Testing 21736 | -3/Testing | Accompanied by 4 allies 21779 | -3/Testing | Found Prototype Protection 22574 | -3/Testing | Discovered new exit (range 4) 22577 | -3/Testing | Identified exit to Research 22611 | -3/Testing | Entered Research 22611 | -2/Research | Warlord forces began assault on 0b10 22611 | -2/Research | Evolved 2 slots: Propulsion x1, Utility x1 22721 | -2/Research | Research machine network offline 22751 | -2/Research | Spotted B-90 Cyclops 22801 | -2/Research | Destroyed B-90 Cyclops 22861 | -2/Research | Spotted Executioner 22861 | -2/Research | Spotted Executioner 22872 | -2/Research | Identified SHELL Armor 22873 | -2/Research | Destroyed Executioner 22888 | -2/Research | Destroyed Executioner 22929 | -2/Research | System corruption reached 10% 22933 | -2/Research | Destroyed 9 combat bots 22952 | -2/Research | Core integrity fell below 50% 22976 | -2/Research | Spotted Striker 22976 | -2/Research | Spotted Striker 22981 | -2/Research | Borebot progress halted 22982 | -2/Research | Lost 18 parts (1p4n4u9w) 23038 | -2/Research | Lost 6 allies 23062 | -2/Research | Found Corrupted Prototype Processor 23062 | -2/Research | Identified Exp. Core Analyzer 23069 | -2/Research | Spotted Striker 23104 | -2/Research | Found Prototype Device 23104 | -2/Research | Identified Exp. Actuator Array 23144 | -2/Research | Borebot progress halted 23198 | -2/Research | Found Prototype Processor 23198 | -2/Research | Identified Exp. Melee Analysis Suite 23337 | -2/Research | Found Corrupted Prototype Device 23543 | -2/Research | Discovered new exit (range 15) 23557 | -2/Research | Identified exit to Quarantine 23611 | -2/Research | Found Prototype Launcher 23611 | -2/Research | Identified Hellfire Missile Launcher 23667 | -2/Research | Lost 8 allies 23718 | -2/Research | Borebot progress halted 23742 | -2/Research | Met up with Warlord 23743 | -2/Research | Warlord invited to help at Command 23743 | -2/Research | Given Cave Seal Controls access code 23819 | -2/Research | Entered Quarantine 23956 | -2/Quarantine | Found Alien Artifact 24018 | -2/Quarantine | Garrison activated, responded to threat 24046 | -2/Quarantine | Cryocooling Duct disabled 24061 | -2/Quarantine | Ambient heat levels rising (+20) 24061 | -2/Quarantine | Non-combat units ordered to evacuate 24064 | -2/Quarantine | Discovered new exit (range 11) 24126 | -2/Quarantine | Identified exit to Access 24127 | -2/Quarantine | Entered Access 24127 | -1/Access | Evolved 2 slots: Propulsion x1, Utility x1 24152 | -1/Access | Identified exit to Command 24152 | -1/Access | Watched by a mysterious "MATRIX" hacker 24440 | -1/Access | Garrison activated, responded to threat 24544 | -1/Access | Spotted B-99 Colossus 24544 | -1/Access | Spotted B-99 Colossus 24554 | -1/Access | Entered Command 25146 | -1/Command | Disengaged cave seal 25146 | -1/Command | Derelicts emerged from the dark tunnel 25146 | -1/Command | Welcomed Warlord to Command 25166 | -1/Command | Enhanced Grunt warped into view, answering call for help 25170 | -1/Command | Enhanced Grunt warped into view, answering call for help 25268 | -1/Command | Found Prototype Device 25268 | -1/Command | Identified Exp. Thermal Shield 25408 | -1/Command | Lost 3 allies 25461 | -1/Command | Spotted Combat Programmer 25461 | -1/Command | Spotted Combat Programmer 25468 | -1/Command | Spotted M Guard 25469 | -1/Command | Spotted M Guard 25488 | -1/Command | Destroyed M Guard 25494 | -1/Command | Destroyed M Guard 25494 | -1/Command | All MAIN.C guards destroyed 25503 | -1/Command | Warlord commented on Warlord statues 25514 | -1/Command | Lost 9 allies 25624 | -1/Command | Identified Subatomic Replicator 25624 | -1/Command | Used Subatomic Replicator to replicate BFG-9k Vortex Edition 25634 | -1/Command | Met MAIN.C 25637 | -1/Command | 0b10 Conduit disabled 25665 | -1/Command | MAIN.C activated Command garrisons 25669 | -1/Command | Destroyed MAIN.C 25671 | *** | Establishing Free Derelict Territories! Last Messages --------------- 25663_ Blast Slug penetrates MAIN.C. 25663_ MAIN.C destroyed. 25663_ MAIN.C's core emerges from the rubble. MAIN.C: Okay, we do this the hard way. At our weakest we defeated an entire Sigix starship! Did you really think you could overcome the vast resources of 0b10?! You don't stand a chance against what's coming. 25665_ ALERT: All Command garrisons activated. ZY-L1N: Not so powerful now, are you, MAIN.C! 25666_ MAIN.C knocked back. 25666_ Blast Slug penetrates MAIN.C. 25669_ Activated shielding mode. 25669_ MAIN.C: "I hope you know you're still going to DIE HERE WITH ME!" 25669_ MAIN.C destroyed. 25670_ System corrupted: FCS attempts to trigger BFG-9k Vortex Edition. ZY-L1N: Victory! Sure there's still lots to do, but without MAIN.C at the helm 0b10 doesn't stand a chance. We've got this... [Achievement: Warlord Forever!] Map ----- +----------------------------------------------------+ | ?????????????????????????????????????????????????? | | ?????????????????????????????????????????????????? | | ?????????????????????????????????????????????????? | | ?????????????????????????????????????????????????? | | ?????????????????????????????????????????????????? | | ?????????????????????????????????????????????????? | | ?????????????????????????????????????????????????? | | ?????????????????????????????????????????????????? | | ?????????????????????????????????????????????????? | | ?????????????????????????????????????????????????? | | ?????????????????????????????????????????????????? | | ?????????????????????????????????????????????????? | | ?????????????????????????????????????????????????? | | ?????????????????????????????????????????????????? | | ?????????????????????????????????????????????????? | | ?????????????????????????????????????????????????? | | ??????????????#############??????????????????????? | | ??????????????"""" #??????????????????????? | | ??????????????"" #??????????????????????? | | ??????????????"" #######################? | | ??????????????"" / #? | | ?????????????""" /[ [ #? | | ?????????????"" ;[][ #? | | ?????????????"" ################### #? | | ?????????????"" W #?????????????????# #? | | ???????????? " %$ @#?????????????????# ## | | ???????????? " %#?????????????????# T# | | ???????????"" % %""""" "#?????????????????#+++## | | ??????????? """""""""#?????????????????# | | ???????????? """""""""""#?????????????????# | | ???????????? ????? " " #?????????????????# | | ???????????????????? " #?????????????????# | | ????????????????????""" " #?????????????????# | | ?????????????????????"""" #?????????????????# # | | ??????????????????????"?? ??????????????????###### | | ?????????????????????????????????????????????????? | | ?????????????????????????????????????????????????? | | ?????????????????????????????????????????????????? | | ?????????????????????????????????????????????????? | | ?????????????????????????????????????????????????? | | ?????????????????????????????????????????????????? | | ?????????????????????????????????????????????????? | | ?????????????????????????????????????????????????? | | ?????????????????????????????????????????????????? | | ?????????????????????????????????????????????????? | | ?????????????????????????????????????????????????? | | ?????????????????????????????????????????????????? | | ?????????????????????????????????????????????????? | | ?????????????????????????????????????????????????? | | ?????????????????????????????????????????????????? | +----------------------------------------------------+ Best States ------------- Heat Dissipation 83 Coolant Potential 120 Energy Generation 55 Energy Capacity 940 Matter Stores 300 Matter Capacity 300 Sight Range 22 Robot Scan Range 20 Terrain Scan Density 10 Additional Mass Support 16 Corruption Block 13 Armor Coverage 900 Resistance: TH 30 Point Defense Rating 240 Melee Speed Boost 20 Evasion (%) 70 Targeting Accuracy 12 Melee Accuracy 5 Target Analysis 8 Core Analysis 8 Recoil Reduction 6 Particle Charging 25 Kinecelleration 40 Salvage Targeting 4 Offensive Hacking 32 Item Schematics ----------------- Hcp. Storage Unit | -10/Materials | Hacked Axe | -8/Storage | Hacked Combat Drone Bay | -7/Data Miner | Free Lgt. Regenerative Plating | -7/Data Miner | Free Cld. Cesium-ion Thruster | -7/Data Miner | Free Gravity Neutralizer | -7/Data Miner | Free Arm. Medium Treads | -7/Data Miner | Free Ion Burst Cannon | -7/Data Miner | Free Imp. Recalibrator | -7/Data Miner | Free KE Penetrator | -7/Data Miner | Free Hpw. Shock Rifle | -7/Data Miner | Free Hvy. Treads | -7/Data Miner | Free Lrn. Phase Cannon | -3/Testing | Archive Adv. Dynamic Insulation System | -3/Testing | Archive Mni. Smartbomb Launcher | -3/Testing | Archive Robot Schematics ------------------ M-13 Machinist | -9/Mines | Hacked L-41 Fighter | -7/Data Miner | Free S-27 Virus | -7/Data Miner | Free C-17 Slicer | -7/Data Miner | Free M-28 Smith | -7/Data Miner | Free C-35 Carver | -7/Data Miner | Free R-10 Processor | -7/Data Miner | Free B-48 Gladiator | -7/Data Miner | Free A-27 Freighter | -3/Testing | Archive Fabricated ------------ Nothing Repaired ---------- KE Penetrator | 14% | -4/Factory Studied --------- Mace | -9/Materials | Hacked Arm. Medium Treads | -3/Testing | Hacked Railgun | -3/Testing | Hacked Coil Gun | -3/Testing | Hacked Hyp. Mass Driver | -3/Testing | Hacked Gamma Rifle | -3/Testing | Hacked Biometal Leg | -2/Quarantine | Hacked KE Penetrator | -2/Quarantine | Hacked Alien Tech Used ----------------- Core Expander Subatomic Replicator Achievements -------------- The Slayer Has Control Warlord Forever! Challenges ------------ None Game ------ Seed InsulationSignalPlating Manual? 0 Play Time 05:07:34 Cumulative 692.6 hours Start 2026.08.19 @ 23:09:08 End 2026.08.23 @ 16:53:22 Sessions 19 Manual Loads 0 Difficulty Rogue Special Mode None Game No. 387 Rogue 362 Adventurer 7 Explorer 18 Win Type 7 Total 68 Types 43/3/9/2/2/1/2/4/0/2 Lore% 95 Gallery% 88 Achievement% 75 Wizard Run 0 Options --------- Layout 0 ASCII 0 Keyboard 0 Movement Numpad Keybinds 0 Fullscreen 1 Font 18/SmallcapsGlow Map View 76x50 Zoom Use 0% Tactical HUD 1 Map Filters NONE Filters NONE Steam 1 RUN: 31ab634f-5c2a-4616-8500-c35797756988